Workbook

Sheet Data summary
A1: RUN # 2 | B1: Rate classes | C1: Weather station used for normalization | H1: Test Year
A2: 1 | B2: Residential class | C2: Ottawa | H2: 2004
A3: 2 | B3: General service <50kW
A4: 3 | B4: General service >50kW
A5: 4 | B5: USL
A6: 5 | B6: Streetlights
A9: Monthly kWh by class (with actual weather) | C9: Jan | D9: Feb | E9: Mar | F9: Apr | G9: May | H9: Jun | I9: Jul | J9: Aug | K9: Sep | L9: Oct | M9: Nov | N9: Dec | O9: TOTAL
A10: 1 | B10: Residential class | C10: 2586895.416 | D10: 1904424.157 | E10: 1670756.127 | F10: 1287599.528 | G10: 861982.5924 | H10: 763286.9555 | I10: 949726.2958 | J10: 837050.1215 | K10: 804708.136 | L10: 1066389.303 | M10: 1493035.62 | N10: 2106379.287 | O10: 16332233.54
A11: 2 | B11: General service <50kW | C11: 758926.7661 | D11: 676858.9815 | E11: 523505.2948 | F11: 429761.5776 | G11: 407485.458 | H11: 402989.3702 | I11: 361402.0876 | J11: 384729.84 | K11: 342974.9929 | L11: 375483.5834 | M11: 432719.2156 | N11: 673970.713 | O11: 5770807.881
A12: 3 | B12: General service >50kW | C12: 709336.1078 | D12: 568510.2908 | E12: 547058.6544 | F12: 440304.4181 | G12: 386376.2465 | H12: 352222.8802 | I12: 300348.6244 | J12: 332136.1049 | K12: 347382.9592 | L12: 408118.7534 | M12: 501553.3155 | N12: 668371.1918 | O12: 5561719.547
A13: 4 | B13: USL | C13: 1662.43 | D13: 1662.43 | E13: 1662.43 | F13: 1662.43 | G13: 1662.43 | H13: 1662.43 | I13: 1662.43 | J13: 1662.43 | K13: 1662.43 | L13: 1662.43 | M13: 1662.43 | N13: 1662.43 | O13: 19949.16
A14: 5 | B14: Streetlights | C14: 36299.50447 | D14: 31255.32324 | E14: 29912.4515 | F14: 25366.68061 | G14: 23064.4083 | H14: 20778.15762 | I14: 22292.08265 | J14: 25080.73946 | K14: 27699.692 | L14: 32306.92826 | M14: 34407.43383 | N14: 37237.51936 | O14: 345700.9213
A17: Monthly kWh by class (with normalized weather) | C17: Jan | D17: Feb | E17: Mar | F17: Apr | G17: May | H17: Jun | I17: Jul | J17: Aug | K17: Sep | L17: Oct | M17: Nov | N17: Dec | O17: TOTAL
A18: 1 | B18: Residential class | C18: 2326517.091 | D18: 1929678.515 | E18: 1794442.089 | F18: 1260140.365 | G18: 877029.0177 | H18: 793657.7708 | I18: 957179.0197 | J18: 850289.4566 | K18: 847747.6669 | L18: 1111002.162 | M18: 1531998.109 | N18: 1985677.508 | O18: 16265358.77
A19: 2 | B19: General service <50kW | C19: 701351.6998 | D19: 682443.2458 | E19: 550854.835 | F19: 423689.7852 | G19: 411625.9814 | H19: 416283.4441 | I19: 364664.3334 | J19: 390525.0317 | K19: 358497.8541 | L19: 385348.4151 | M19: 441334.6327 | N19: 647281.0377 | O19: 5773900.296
A20: 3 | B20: General service >50kW | C20: 639545.7155 | D20: 575279.3319 | E20: 580210.768 | F20: 432944.4133 | G20: 391209.3378 | H20: 366834.071 | I20: 303934.0788 | J20: 338505.4581 | K20: 364826.647 | L20: 420076.542 | M20: 511996.6094 | N20: 636018.9423 | O20: 5561381.915
A21: 4 | B21: USL | C21: 1662.43 | D21: 1662.43 | E21: 1662.43 | F21: 1662.43 | G21: 1662.43 | H21: 1662.43 | I21: 1662.43 | J21: 1662.43 | K21: 1662.43 | L21: 1662.43 | M21: 1662.43 | N21: 1662.43 | O21: 19949.16
A22: 5 | B22: Streetlights | C22: 36299.50447 | D22: 31255.32324 | E22: 29912.4515 | F22: 25366.68061 | G22: 23064.4083 | H22: 20778.15762 | I22: 22292.08265 | J22: 25080.73946 | K22: 27699.692 | L22: 32306.92826 | M22: 34407.43383 | N22: 37237.51936 | O22: 345700.9213
A25: Residential class information | C25: Equipment saturation
B26: Electric space heating | C26: 0.5993
B27: Electric water heating | C27: 0.8174
B28: Air conditioning | C28: 0.19396128
B29: Baseload | C29: 1
A32: General service >50kW | C32: 2004 kWh (Actual) | D32: 2004 kWh (Weather Corrected)
B33: Weather sensitive load | C33: 5561719.547 | D33: 5561381.915
B34: Non-weather sensitive load | C34: 0 | D34: 0
B35: TOTAL | C35: 5561719.547 | D35: 5561381.915

Sheet Hourly load shapes by class
A1: ALL UNITS IN GWh | E1: 2004 Load Shape | L1: 2015 Load Shape
A2: Year | B2: Month | C2: Day | D2: Hour (EST) | E2: Residential | F2: GS<50 kW | G2: GS>50 kW | H2: USL | I2: Street Lighting | J2: TOTAL LDC sales | L2: =E2 -> Residential | M2: GS<50 kW | N2: GS>50 kW | O2: USL | P2: Street Lighting | Q2: TOTAL LDC sales | T2: Residential | U2: GS<50 kW | V2: GS>50 kW | W2: USL | X2: Street Lighting
A3: 2004 | B3: 1 | C3: 1 | D3: 1 | E3: 0.002547250505 | F3: 0.0009900599908 | G3: 0.0007905495626 | H3: 2.234448925e-06 | I3: 8.0172213e-05 | J3: =SUM(E3:I3) -> 0.00441026672 | L3: =E3*T$5 -> 0.001936883448 | M3: =F3*U$5 -> 0.0006621010102 | N3: =G3*V$5 -> 0.0005663576879 | O3: =H3*W$5 -> 1.935483871e-06 | P3: =I3*X$5 -> 3.548259725e-05 | Q3: =SUM(L3:P3) -> 0.003202760228 | S3: 2004 | T3: 16265358.77 | U3: 5773900.296 | V3: 5561381.915 | W3: 19949.16 | X3: 345700.9213
A4: 2004 | B4: 1 | C4: 1 | D4: 2 | E4: 0.002415577321 | F4: 0.001005117197 | G4: 0.000793976259 | H4: 2.234448925e-06 | I4: 8.0172213e-05 | J4: =SUM(E4:I4) -> 0.00429707744 | L4: 0.001836761529 | M4: 0.0006721704926 | N4: 0.0005688126078 | O4: 1.935483871e-06 | P4: 3.548259725e-05 | Q4: 0.00311516271 | S4: 2018 Forecast | T4: 12367886.13 | U4: 3861286.442 | V4: 3984230.151 | W4: 17280 | X4: 153000.2241
A5: 2004 | B5: 1 | C5: 1 | D5: 3 | E5: 0.002413088661 | F5: 0.0009603931898 | G5: 0.0007675745814 | H5: 2.234448925e-06 | I5: 8.0172213e-05 | J5: 0.004223463095 | L5: 0.001834869197 | M5: 0.0006422613853 | N5: 0.0005498981794 | O5: 1.935483871e-06 | P5: 3.548259725e-05 | Q5: 0.003064446843 | S5: Scaling Factor | T5: =T4/T3 -> 0.7603820058 | U5: =U4/U3 -> 0.6687483752 | V5: 0.7164100958 | W5: 0.8662018852 | X5: 0.4425797408
A6: 2004 | B6: 1 | C6: 1 | D6: 4 | E6: 0.002428648959 | F6: 0.0009137558666 | G6: 0.0007429401681 | H6: 2.234448925e-06 | I6: 8.0172213e-05 | J6: 0.004167751655 | L6: 0.001846700967 | M6: 0.0006110727511 | N6: 0.000532249837 | O6: 1.935483871e-06 | P6: 3.548259725e-05 | Q6: 0.003027441636
A7: 2004 | B7: 1 | C7: 1 | D7: 5 | E7: 0.002548875625 | F7: 0.0008959576648 | G7: 0.0007279067856 | H7: 2.234448925e-06 | I7: 8.0172213e-05 | J7: 0.004255146737 | L7: 0.001938119161 | M7: 0.0005991702326 | N7: 0.00052147977 | O7: 1.935483871e-06 | P7: 3.548259725e-05 | Q7: 0.003096187244
A8: 2004 | B8: 1 | C8: 1 | D8: 6 | E8: 0.002654885587 | F8: 0.000878068431 | G8: 0.0007315387827 | H8: 2.234448925e-06 | I8: 8.0172213e-05 | J8: 0.004346899463 | L8: 0.002018727228 | M8: 0.0005872068366 | N8: 0.0005240817694 | O8: 1.935483871e-06 | P8: 3.548259725e-05 | Q8: 0.003167433915
A9: 2004 | B9: 1 | C9: 1 | D9: 7 | E9: 0.0028080215 | F9: 0.0008704638382 | G9: 0.0007566750083 | H9: 2.234448925e-06 | I9: 8.0172213e-05 | J9: 0.004517567008 | L9: 0.00213516902 | M9: 0.0005821212774 | N9: 0.0005420896152 | O9: 1.935483871e-06 | P9: 3.548259725e-05 | Q9: 0.003296797994
A10: 2004 | B10: 1 | C10: 1 | D10: 8 | E10: 0.003010535761 | F10: 0.000968310894 | G10: 0.0008408361015 | H10: 2.234448925e-06 | I10: 7.349760905e-05 | J10: 0.004895414814 | L10: 0.00228915722 | M10: 0.000647556337 | N10: 0.000602383472 | O10: 1.935483871e-06 | P10: 3.252855276e-05 | Q10: 0.003573561066
A11: 2004 | B11: 1 | C11: 1 | D11: 9 | E11: 0.003191943541 | F11: 0.001014547745 | G11: 0.0008820909031 | H11: 2.234448925e-06 | I11: 0 | J11: 0.005090816638 | L11: 0.002427096432 | M11: 0.0006784771559 | N11: 0.0006319388284 | O11: 1.935483871e-06 | P11: 0 | Q11: 0.0037394479
A12: 2004 | B12: 1 | C12: 1 | D12: 10 | E12: 0.003242226552 | F12: 0.001047147511 | G12: 0.0009060374352 | H12: 2.234448925e-06 | I12: 0 | J12: 0.005197645947 | L12: 0.002465330729 | M12: 0.0007002781965 | N12: 0.0006490943658 | O12: 1.935483871e-06 | P12: 0 | Q12: 0.003816638775
A13: 2004 | B13: 1 | C13: 1 | D13: 11 | E13: 0.003300829946 | F13: 0.001026042017 | G13: 0.0008996342363 | H13: 2.234448925e-06 | I13: 0 | J13: 0.005228740648 | L13: 0.002509891695 | M13: 0.0006861639317 | N13: 0.0006445070494 | O13: 1.935483871e-06 | P13: 0 | Q13: 0.00384249816
A14: 2004 | B14: 1 | C14: 1 | D14: 12 | E14: 0.003149967702 | F14: 0.001068113343 | G14: 0.0009131387789 | H14: 2.234448925e-06 | I14: 0 | J14: 0.005133454273 | L14: 0.00239517876 | M14: 0.0007142990625 | N14: 0.0006541818401 | O14: 1.935483871e-06 | P14: 0 | Q14: 0.003765595146
A15: 2004 | B15: 1 | C15: 1 | D15: 13 | E15: 0.002994586492 | F15: 0.001105637327 | G15: 0.0009170998194 | H15: 2.234448925e-06 | I15: 0 | J15: 0.005019558087 | L15: 0.002277029684 | M15: 0.000739393166 | N15: 0.0006570195695 | O15: 1.935483871e-06 | P15: 0 | Q15: 0.003675377903
A16: 2004 | B16: 1 | C16: 1 | D16: 14 | E16: 0.002809960632 | F16: 0.001103363459 | G16: 0.0009226134848 | H16: 2.234448925e-06 | I16: 0 | J16: 0.004838172025 | L16: 0.002136643502 | M16: 0.0007378725204 | N16: 0.000660969615 | O16: 1.935483871e-06 | P16: 0 | Q16: 0.003537421121
A17: 2004 | B17: 1 | C17: 1 | D17: 15 | E17: 0.002818229264 | F17: 0.0009731071061 | G17: 0.0008769963325 | H17: 2.234448925e-06 | I17: 0 | J17: 0.004670567151 | L17: 0.00214293082 | M17: 0.0006507637961 | N17: 0.0006282890266 | O17: 1.935483871e-06 | P17: 0 | Q17: 0.003423919127
A18: 2004 | B18: 1 | C18: 1 | D18: 16 | E18: 0.002810367228 | F18: 0.00104761418 | G18: 0.0008932703192 | H18: 2.234448925e-06 | I18: 0 | J18: 0.004753486176 | L18: 0.00213695267 | M18: 0.0007005902805 | N18: 0.000639947875 | O18: 1.935483871e-06 | P18: 0 | Q18: 0.003479426309
A19: 2004 | B19: 1 | C19: 1 | D19: 17 | E19: 0.003194865624 | F19: 0.001228642185 | G19: 0.0009727195722 | H19: 2.234448925e-06 | I19: 4.00861065e-06 | J19: 0.005402470441 | L19: 0.002429318332 | M19: 0.0008216524652 | N19: 0.0006968661219 | O19: 1.935483871e-06 | P19: 1.774129862e-06 | Q19: 0.003951546533
A20: 2004 | B20: 1 | C20: 1 | D20: 18 | E20: 0.003653368046 | F20: 0.001073427235 | G20: 0.000907278041 | H20: 2.234448925e-06 | I20: 8.0172213e-05 | J20: 0.005716479983 | L20: 0.002777955323 | M20: 0.0007178527193 | N20: 0.0006499831483 | O20: 1.935483871e-06 | P20: 3.548259725e-05 | Q20: 0.004183209271
A21: 2004 | B21: 1 | C21: 1 | D21: 19 | E21: 0.003613869629 | F21: 0.001065319683 | G21: 0.0008978771753 | H21: 2.234448925e-06 | I21: 8.0172213e-05 | J21: 0.005659473149 | L21: 0.002747921437 | M21: 0.0007124308068 | N21: 0.0006432482732 | O21: 1.935483871e-06 | P21: 3.548259725e-05 | Q21: 0.004141018599
A22: 2004 | B22: 1 | C22: 1 | D22: 20 | E22: 0.003528876094 | F22: 0.001086092709 | G22: 0.0008953147113 | H22: 2.234448925e-06 | I22: 8.0172213e-05 | J22: 0.005592690177 | L22: 0.002683293883 | M22: 0.0007263227346 | N22: 0.0006414124981 | O22: 1.935483871e-06 | P22: 3.548259725e-05 | Q22: 0.004088447197
A23: 2004 | B23: 1 | C23: 1 | D23: 21 | E23: 0.003474896072 | F23: 0.001071311141 | G23: 0.0008765632852 | H23: 2.234448925e-06 | I23: 8.0172213e-05 | J23: 0.005505177159 | L23: 0.002642248445 | M23: 0.0007164375846 | N23: 0.0006279787871 | O23: 1.935483871e-06 | P23: 3.548259725e-05 | Q23: 0.004024082898
A24: 2004 | B24: 1 | C24: 1 | D24: 22 | E24: 0.003290619299 | F24: 0.001080883209 | G24: 0.0008690583566 | H24: 2.234448925e-06 | I24: 8.0172213e-05 | J24: 0.005322967527 | L24: 0.002502127703 | M24: 0.0007228388897 | N24: 0.0006226021805 | O24: 1.935483871e-06 | P24: 3.548259725e-05 | Q24: 0.003884986855
A25: 2004 | B25: 1 | C25: 1 | D25: 23 | E25: 0.003015509199 | F25: 0.001021767328 | G25: 0.0008309716629 | H25: 2.234448925e-06 | I25: 8.0172213e-05 | J25: 0.004950654852 | L25: 0.002292938934 | M25: 0.0006833052405 | N25: 0.0005953164886 | O25: 1.935483871e-06 | P25: 3.548259725e-05 | Q25: 0.003608978744
A26: 2004 | B26: 1 | C26: 1 | D26: 24 | E26: 0.00261675812 | F26: 0.001062111455 | G26: 0.0008257829479 | H26: 2.234448925e-06 | I26: 8.0172213e-05 | J26: 0.004587059185 | L26: 0.001989735788 | M26: 0.0007102853096 | N26: 0.0005915992408 | O26: 1.935483871e-06 | P26: 3.548259725e-05 | Q26: 0.00332903842
A27: 2004 | B27: 1 | C27: 2 | D27: 1 | E27: 0.002460054773 | F27: 0.0008809526052 | G27: 0.000758052896 | H27: 2.234448925e-06 | I27: 8.0172213e-05 | J27: 0.004181466936 | L27: 0.001870581383 | M27: 0.0005891356233 | N27: 0.0005430767478 | O27: 1.935483871e-06 | P27: 3.548259725e-05 | Q27: 0.003040211835
A28: 2004 | B28: 1 | C28: 2 | D28: 2 | E28: 0.002307467436 | F28: 0.0009159958789 | G28: 0.0007682798842 | H28: 2.234448925e-06 | I28: 8.0172213e-05 | J28: 0.004074149861 | L28: 0.001754556717 | M28: 0.0006125707557 | N28: 0.0005504034654 | O28: 1.935483871e-06 | P28: 3.548259725e-05 | Q28: 0.002954949019
A29: 2004 | B29: 1 | C29: 2 | D29: 3 | E29: 0.002329074527 | F29: 0.000856828488 | G29: 0.0007360449303 | H29: 2.234448925e-06 | I29: 8.0172213e-05 | J29: 0.004004354608 | L29: 0.001770986361 | M29: 0.0005730026592 | N29: 0.000527310019 | O29: 1.935483871e-06 | P29: 3.548259725e-05 | Q29: 0.00290871712
A30: 2004 | B30: 1 | C30: 2 | D30: 4 | E30: 0.002361765038 | F30: 0.0008017822605 | G30: 0.0007055796881 | H30: 2.234448925e-06 | I30: 8.0172213e-05 | J30: 0.003951533649 | L30: 0.001795843637 | M30: 0.000536190584 | N30: 0.000505484412 | O30: 1.935483871e-06 | P30: 3.548259725e-05 | Q30: 0.002874936714
A31: 2004 | B31: 1 | C31: 2 | D31: 5 | E31: 0.002471078128 | F31: 0.0007846682848 | G31: 0.0006962414768 | H31: 2.234448925e-06 | I31: 8.0172213e-05 | J31: 0.004034394552 | L31: 0.001878963344 | M31: 0.0005247456405 | N31: 0.0004987944231 | O31: 1.935483871e-06 | P31: 3.548259725e-05 | Q31: 0.002939921489
A32: 2004 | B32: 1 | C32: 2 | D32: 6 | E32: 0.002609566603 | F32: 0.0007471902046 | G32: 0.0006822240576 | H32: 2.234448925e-06 | I32: 8.0172213e-05 | J32: 0.004121387527 | L32: 0.001984267488 | M32: 0.0004996822353 | N32: 0.0004887522025 | O32: 1.935483871e-06 | P32: 3.548259725e-05 | Q32: 0.003010120006
A33: 2004 | B33: 1 | C33: 2 | D33: 7 | E33: 0.002746539067 | F33: 0.0007052868816 | G33: 0.0007489680795 | H33: 2.234448925e-06 | I33: 8.0172213e-05 | J33: 0.00428320069 | L33: 0.002088418885 | M33: 0.0004716594561 | N33: 0.0005365682936 | O33: 1.935483871e-06 | P33: 3.548259725e-05 | Q33: 0.003134064715
A34: 2004 | B34: 1 | C34: 2 | D34: 8 | E34: 0.002909251756 | F34: 0.000782223663 | G34: 0.0008742388896 | H34: 2.234448925e-06 | I34: 7.349760905e-05 | J34: 0.004641446366 | L34: 0.002212142686 | M34: 0.0005231108037 | N34: 0.0006263135666 | O34: 1.935483871e-06 | P34: 3.252855276e-05 | Q34: 0.003396031093
A35: 2004 | B35: 1 | C35: 2 | D35: 9 | E35: 0.003009781612 | F35: 0.0008595907803 | G35: 0.0009551040708 | H35: 2.234448925e-06 | I35: 0 | J35: 0.004826710912 | L35: 0.002288583779 | M35: 0.0005748499377 | N35: 0.0006842461989 | O35: 1.935483871e-06 | P35: 0 | Q35: 0.003549615399
A36: 2004 | B36: 1 | C36: 2 | D36: 10 | E36: 0.002987757982 | F36: 0.0009360677139 | G36: 0.00100193806 | H36: 2.234448925e-06 | I36: 0 | J36: 0.004927998205 | L36: 0.002271837407 | M36: 0.0006259937627 | N36: 0.0007177985419 | O36: 1.935483871e-06 | P36: 0 | Q36: 0.003617565196
A37: 2004 | B37: 1 | C37: 2 | D37: 11 | E37: 0.003134455594 | F37: 0.0008521415725 | G37: 0.0009686481489 | H37: 2.234448925e-06 | I37: 0 | J37: 0.004957479764 | L37: 0.002383383632 | M37: 0.000569868292 | N37: 0.0006939493132 | O37: 1.935483871e-06 | P37: 0 | Q37: 0.003649136721
A38: 2004 | B38: 1 | C38: 2 | D38: 12 | E38: 0.00292211697 | F38: 0.0009404527834 | G38: 0.001002332329 | H38: 2.234448925e-06 | I38: 0 | J38: 0.004867136531 | L38: 0.002221925163 | M38: 0.0006289262709 | N38: 0.0007180810001 | O38: 1.935483871e-06 | P38: 0 | Q38: 0.003570867918
A39: 2004 | B39: 1 | C39: 2 | D39: 13 | E39: 0.002755194616 | F39: 0.0009917010743 | G39: 0.001010019457 | H39: 2.234448925e-06 | I39: 0 | J39: 0.004759149597 | L39: 0.002095000409 | M39: 0.0006631984822 | N39: 0.0007235881359 | O39: 1.935483871e-06 | P39: 0 | Q39: 0.003483722511
A40: 2004 | B40: 1 | C40: 2 | D40: 14 | E40: 0.002601600442 | F40: 0.000979087845 | G40: 0.001004250547 | H40: 2.234448925e-06 | I40: 0 | J40: 0.004587173283 | L40: 0.001978210163 | M40: 0.0006547634056 | N40: 0.0007194552303 | O40: 1.935483871e-06 | P40: 0 | Q40: 0.003354364282
A41: 2004 | B41: 1 | C41: 2 | D41: 15 | E41: 0.002593645117 | F41: 0.000874283601 | G41: 0.0009581007222 | H41: 2.234448925e-06 | I41: 0 | J41: 0.004428263889 | L41: 0.001972161077 | M41: 0.0005846757377 | N41: 0.0006863930302 | O41: 1.935483871e-06 | P41: 0 | Q41: 0.003245165328
A42: 2004 | B42: 1 | C42: 2 | D42: 16 | E42: 0.002563561482 | F42: 0.0009687376182 | G42: 0.0009723472472 | H42: 2.234448925e-06 | I42: 0 | J42: 0.004506880796 | L42: 0.001949286021 | M42: 0.0006478417082 | N42: 0.0006965993846 | O42: 1.935483871e-06 | P42: 0 | Q42: 0.003295662598
A43: 2004 | B43: 1 | C43: 2 | D43: 17 | E43: 0.002938280111 | F43: 0.001146334102 | G43: 0.001032675685 | H43: 2.234448925e-06 | I43: 2.672407073e-06 | J43: 0.005122196753 | L43: 0.002234215324 | M43: 0.000766609068 | N43: 0.0007398192861 | O43: 1.935483871e-06 | P43: 1.18275323e-06 | Q43: 0.003743761915
A44: 2004 | B44: 1 | C44: 2 | D44: 18 | E44: 0.003431426787 | F44: 0.0009681399403 | G44: 0.0009379422961 | H44: 2.234448925e-06 | I44: 8.0172213e-05 | J44: 0.005419915686 | L44: 0.002609195183 | M44: 0.000647442012 | N44: 0.0006719513302 | O44: 1.935483871e-06 | P44: 3.548259725e-05 | Q44: 0.003966006607
A45: 2004 | B45: 1 | C45: 2 | D45: 19 | E45: 0.003399236935 | F45: 0.0009677472053 | G45: 0.0009164756792 | H45: 2.234448925e-06 | I45: 8.0172213e-05 | J45: 0.005365866481 | L45: 0.002584718599 | M45: 0.0006471793712 | N45: 0.0006565724292 | O45: 1.935483871e-06 | P45: 3.548259725e-05 | Q45: 0.00392588848
A46: 2004 | B46: 1 | C46: 2 | D46: 20 | E46: 0.003363286874 | F46: 0.0009589521826 | G46: 0.0008979021466 | H46: 2.234448925e-06 | I46: 8.0172213e-05 | J46: 0.005302547865 | L46: 0.002557382819 | M46: 0.000641297714 | N46: 0.0006432661629 | O46: 1.935483871e-06 | P46: 3.548259725e-05 | Q46: 0.003879364777
A47: 2004 | B47: 1 | C47: 2 | D47: 21 | E47: 0.003325941622 | F47: 0.0009429609458 | G47: 0.0008682657786 | H47: 2.234448925e-06 | I47: 8.0172213e-05 | J47: 0.005219575008 | L47: 0.002528986162 | M47: 0.0006306036004 | N47: 0.0006220343696 | O47: 1.935483871e-06 | P47: 3.548259725e-05 | Q47: 0.003819042213
A48: 2004 | B48: 1 | C48: 2 | D48: 22 | E48: 0.003118970849 | F48: 0.0009808636346 | G48: 0.0008645770334 | H48: 2.234448925e-06 | I48: 8.0172213e-05 | J48: 0.005046818179 | L48: 0.00237160931 | M48: 0.0006559509619 | N48: 0.0006193917153 | O48: 1.935483871e-06 | P48: 3.548259725e-05 | Q48: 0.003684370069
A49: 2004 | B49: 1 | C49: 2 | D49: 23 | E49: 0.002924204183 | F49: 0.0008917707147 | G49: 0.0007954393336 | H49: 2.234448925e-06 | I49: 8.0172213e-05 | J49: 0.004693820893 | L49: 0.002223512242 | M49: 0.0005963702165 | N49: 0.0005698607692 | O49: 1.935483871e-06 | P49: 3.548259725e-05 | Q49: 0.003427161309
A50: 2004 | B50: 1 | C50: 2 | D50: 24 | E50: 0.002542549737 | F50: 0.0009373391742 | G50: 0.0007867921769 | H50: 2.234448925e-06 | I50: 8.0172213e-05 | J50: 0.00434908775 | L50: 0.001933309069 | M50: 0.0006268440498 | N50: 0.0005636658588 | O50: 1.935483871e-06 | P50: 3.548259725e-05 | Q50: 0.003161237059
A51: 2004 | B51: 1 | C51: 3 | D51: 1 | E51: 0.001893322084 | F51: 0.0009726225292 | G51: 0.0007434958254 | H51: 2.234448925e-06 | I51: 8.0172213e-05 | J51: 0.003691847101 | L51: 0.001439648044 | M51: 0.0006504397361 | N51: 0.0005326479155 | O51: 1.935483871e-06 | P51: 3.548259725e-05 | Q51: 0.002660153777
A52: 2004 | B52: 1 | C52: 3 | D52: 2 | E52: 0.001789860132 | F52: 0.001008957776 | G52: 0.0007439760587 | H52: 2.234448925e-06 | I52: 8.0172213e-05 | J52: 0.003625200629 | L52: 0.001360977437 | M52: 0.0006747388734 | N52: 0.0005329919595 | O52: 1.935483871e-06 | P52: 3.548259725e-05 | Q52: 0.002606126351
A53: 2004 | B53: 1 | C53: 3 | D53: 3 | E53: 0.001804814371 | F53: 0.0009443152293 | G53: 0.0007109636061 | H53: 2.234448925e-06 | I53: 8.0172213e-05 | J53: 0.003542499869 | L53: 0.001372348372 | M53: 0.0006315092753 | N53: 0.0005093415051 | O53: 1.935483871e-06 | P53: 3.548259725e-05 | Q53: 0.002550617233
A54: 2004 | B54: 1 | C54: 3 | D54: 4 | E54: 0.001855921971 | F54: 0.0009505231212 | G54: 0.0007082305383 | H54: 2.234448925e-06 | I54: 8.0172213e-05 | J54: 0.003597082292 | L54: 0.001411209671 | M54: 0.0006356607929 | N54: 0.0005073835078 | O54: 1.935483871e-06 | P54: 3.548259725e-05 | Q54: 0.002591672052
A55: 2004 | B55: 1 | C55: 3 | D55: 5 | E55: 0.001934118208 | F55: 0.0009373823003 | G55: 0.0007022331511 | H55: 2.234448925e-06 | I55: 8.0172213e-05 | J55: 0.003656140322 | L55: 0.001470668683 | M55: 0.0006268728903 | N55: 0.0005030869191 | O55: 1.935483871e-06 | P55: 3.548259725e-05 | Q55: 0.002638046573
A56: 2004 | B56: 1 | C56: 3 | D56: 6 | E56: 0.001994646868 | F56: 0.0009883725276 | G56: 0.000731888654 | H56: 2.234448925e-06 | I56: 8.0172213e-05 | J56: 0.003797314712 | L56: 0.001516693587 | M56: 0.000660972522 | N56: 0.0005243324208 | O56: 1.935483871e-06 | P56: 3.548259725e-05 | Q56: 0.002739416611
A57: 2004 | B57: 1 | C57: 3 | D57: 7 | E57: 0.002309173633 | F57: 0.0009264649237 | G57: 0.0007170579592 | H57: 2.234448925e-06 | I57: 8.0172213e-05 | J57: 0.004035103178 | L57: 0.001755854079 | M57: 0.0006195719124 | N57: 0.0005137075613 | O57: 1.935483871e-06 | P57: 3.548259725e-05 | Q57: 0.002926551634
A58: 2004 | B58: 1 | C58: 3 | D58: 8 | E58: 0.002431882982 | F58: 0.0009381481898 | G58: 0.0007713782082 | H58: 2.234448925e-06 | I58: 7.349760905e-05 | J58: 0.004217141438 | L58: 0.00184916006 | M58: 0.0006273850776 | N58: 0.000552623136 | O58: 1.935483871e-06 | P58: 3.252855276e-05 | Q58: 0.00306363231
A59: 2004 | B59: 1 | C59: 3 | D59: 9 | E59: 0.002641084282 | F59: 0.0009677793906 | G59: 0.0008144483807 | H59: 2.234448925e-06 | I59: 0 | J59: 0.004425546502 | L59: 0.002008232964 | M59: 0.000647200895 | N59: 0.0005834790424 | O59: 1.935483871e-06 | P59: 0 | Q59: 0.003240848385
A60: 2004 | B60: 1 | C60: 3 | D60: 10 | E60: 0.002742976311 | F60: 0.0009297793663 | G60: 0.0008011498861 | H60: 2.234448925e-06 | I60: 0 | J60: 0.004476140013 | L60: 0.00208570983 | M60: 0.0006217884405 | N60: 0.0005739518667 | O60: 1.935483871e-06 | P60: 0 | Q60: 0.003283385621
A61: 2004 | B61: 1 | C61: 3 | D61: 11 | E61: 0.002797103407 | F61: 0.0007944106036 | G61: 0.0007464707172 | H61: 2.234448925e-06 | I61: 0 | J61: 0.004340219177 | L61: 0.002126867099 | M61: 0.0005312608004 | N61: 0.0005347791581 | O61: 1.935483871e-06 | P61: 0 | Q61: 0.003194842541
A62: 2004 | B62: 1 | C62: 3 | D62: 12 | E62: 0.002543068884 | F62: 0.0009131215528 | G62: 0.0007909211123 | H62: 2.234448925e-06 | I62: 0 | J62: 0.004249345998 | L62: 0.001933703819 | M62: 0.0006106485548 | N62: 0.0005666238698 | O62: 1.935483871e-06 | P62: 0 | Q62: 0.003112911728
A63: 2004 | B63: 1 | C63: 3 | D63: 13 | E63: 0.002427011308 | F63: 0.0008926582717 | G63: 0.00075620354 | H63: 2.234448925e-06 | I63: 0 | J63: 0.004078107569 | L63: 0.001845455727 | M63: 0.0005969637688 | N63: 0.0005417518506 | O63: 1.935483871e-06 | P63: 0 | Q63: 0.00298610683
A64: 2004 | B64: 1 | C64: 3 | D64: 14 | E64: 0.002136848329 | F64: 0.0009992131203 | G64: 0.0008146907214 | H64: 2.234448925e-06 | I64: 0 | J64: 0.00395298662 | L64: 0.001624821019 | M64: 0.0006682221507 | N64: 0.0005836526578 | O64: 1.935483871e-06 | P64: 0 | Q64: 0.002878631311
A65: 2004 | B65: 1 | C65: 3 | D65: 15 | E65: 0.002067357645 | F65: 0.0009870723465 | G65: 0.0008065188243 | H65: 2.234448925e-06 | I65: 0 | J65: 0.003863183264 | L65: 0.001571981553 | M65: 0.0006601030279 | N65: 0.0005777982282 | O65: 1.935483871e-06 | P65: 0 | Q65: 0.002811818293
A66: 2004 | B66: 1 | C66: 3 | D66: 16 | E66: 0.002200522733 | F66: 0.0009360194568 | G66: 0.0007764591162 | H66: 2.234448925e-06 | I66: 0 | J66: 0.003915235755 | L66: 0.00167323789 | M66: 0.0006259614909 | N66: 0.0005562631498 | O66: 1.935483871e-06 | P66: 0 | Q66: 0.002857398014
A67: 2004 | B67: 1 | C67: 3 | D67: 17 | E67: 0.002446038412 | F67: 0.0009477114818 | G67: 0.0007839450427 | H67: 2.234448925e-06 | I67: 2.672407073e-06 | J67: 0.004182601792 | L67: =E67*T$5 -> 0.001859923594 | M67: =F67*U$5 -> 0.0006337805136 | N67: =G67*V$5 -> 0.0005616261431 | O67: =H67*W$5 -> 1.935483871e-06 | P67: =I67*X$5 -> 1.18275323e-06 | Q67: =SUM(L67:P67) -> 0.003058448488
A68: 2004 | B68: 1 | C68: 3 | D68: 18 | E68: 0.002771219137 | F68: 0.0009571813917 | G68: 0.000779653912 | H68: 2.234448925e-06 | I68: 8.0172213e-05 | J68: =SUM(E68:I68) -> 0.004590461103 | L68: 0.002107185166 | M68: 0.0006401135005 | N68: 0.0005585519338 | O68: 1.935483871e-06 | P68: 3.548259725e-05 | Q68: 0.003343268682
A69: 2004 | B69: 1 | C69: 3 | D69: 19 | E69: 0.002775668983 | F69: 0.0009081336996 | G69: 0.0007630534341 | H69: 2.234448925e-06 | I69: 8.0172213e-05 | J69: 0.004529262778 | L69: 0.002110568749 | M69: 0.0006073129361 | N69: 0.0005466591838 | O69: 1.935483871e-06 | P69: 3.548259725e-05 | Q69: 0.00330195895
A70: 2004 | B70: 1 | C70: 3 | D70: 20 | E70: 0.002735172656 | F70: 0.0008360593022 | G70: 0.0007205364516 | H70: 2.234448925e-06 | I70: 8.0172213e-05 | J70: 0.004374175072 | L70: 0.002079776071 | M70: 0.0005591132999 | N70: 0.0005161995883 | O70: 1.935483871e-06 | P70: 3.548259725e-05 | Q70: 0.00319250704
A71: 2004 | B71: 1 | C71: 3 | D71: 21 | E71: 0.002540633625 | F71: 0.0009270745673 | G71: 0.000740386917 | H71: 2.234448925e-06 | I71: 8.0172213e-05 | J71: 0.004290501771 | L71: 0.001931852092 | M71: 0.0006199796106 | N71: 0.0005304206621 | O71: 1.935483871e-06 | P71: 3.548259725e-05 | Q71: 0.003119670446
A72: 2004 | B72: 1 | C72: 3 | D72: 22 | E72: 0.002458497141 | F72: 0.0008791088936 | G72: 0.000712968973 | H72: 2.234448925e-06 | I72: 8.0172213e-05 | J72: 0.004132981669 | L72: 0.001869396987 | M72: 0.0005879026442 | N72: 0.0005107781702 | O72: 1.935483871e-06 | P72: 3.548259725e-05 | Q72: 0.003005495883
A73: 2004 | B73: 1 | C73: 3 | D73: 23 | E73: 0.002409594586 | F73: 0.0008256372813 | G73: 0.0006728062054 | H73: 2.234448925e-06 | I73: 8.0172213e-05 | J73: 0.003990444734 | L73: 0.001832212364 | M73: 0.0005521435904 | N73: 0.000482005158 | O73: 1.935483871e-06 | P73: 3.548259725e-05 | Q73: 0.002903779194
A74: 2004 | B74: 1 | C74: 3 | D74: 24 | E74: 0.001908120288 | F74: 0.001016669432 | G74: 0.000733687487 | H74: 2.234448925e-06 | I74: 8.0172213e-05 | J74: 0.003740883869 | L74: 0.001450900332 | M74: 0.0006798960305 | N74: 0.0005256211228 | O74: 1.935483871e-06 | P74: 3.548259725e-05 | Q74: 0.002693835567
A75: 2004 | B75: 1 | C75: 4 | D75: 1 | E75: 0.001543565156 | F75: 0.0009396777841 | G75: 0.000686546937 | H75: 2.234448925e-06 | I75: 8.0172213e-05 | J75: 0.003252196539 | L75: 0.001173699169 | M75: 0.0006284079913 | N75: 0.0004918491569 | O75: 1.935483871e-06 | P75: 3.548259725e-05 | Q75: 0.002331374399
A76: 2004 | B76: 1 | C76: 4 | D76: 2 | E76: 0.001521717511 | F76: 0.0008904116682 | G76: 0.0006679348185 | H76: 2.234448925e-06 | I76: 8.0172213e-05 | J76: 0.00316247066 | L76: 0.001157086613 | M76: 0.0005954613564 | N76: 0.0004785152473 | O76: 1.935483871e-06 | P76: 3.548259725e-05 | Q76: 0.002268481298
A77: 2004 | B77: 1 | C77: 4 | D77: 3 | E77: 0.001428613292 | F77: 0.0009104136206 | G77: 0.0006675777207 | H77: 2.234448925e-06 | I77: 8.0172213e-05 | J77: 0.003089011295 | L77: 0.00108629184 | M77: 0.0006088376295 | N77: 0.0004782594188 | O77: 1.935483871e-06 | P77: 3.548259725e-05 | Q77: 0.00221080697
A78: 2004 | B78: 1 | C78: 4 | D78: 4 | E78: 0.001498984459 | F78: 0.0008442643477 | G78: 0.0006370525318 | H78: 2.234448925e-06 | I78: 8.0172213e-05 | J78: 0.003062708001 | L78: 0.00113980081 | M78: 0.0005646004108 | N78: 0.0004563908654 | O78: 1.935483871e-06 | P78: 3.548259725e-05 | Q78: 0.002198210167
A79: 2004 | B79: 1 | C79: 4 | D79: 5 | E79: 0.001569888616 | F79: 0.000836709629 | G79: 0.0006322802704 | H79: 2.234448925e-06 | I79: 8.0172213e-05 | J79: 0.003121285177 | L79: 0.001193715055 | M79: 0.0005595482049 | N79: 0.0004529719691 | O79: 1.935483871e-06 | P79: 3.548259725e-05 | Q79: 0.00224365331
A80: 2004 | B80: 1 | C80: 4 | D80: 6 | E80: 0.001637639775 | F80: 0.0008380364331 | G80: 0.000640814593 | H80: 2.234448925e-06 | I80: 8.0172213e-05 | J80: 0.003198897463 | L80: 0.001245231817 | M80: 0.000560435503 | N80: 0.000459086044 | O80: 1.935483871e-06 | P80: 3.548259725e-05 | Q80: 0.002302171445
A81: 2004 | B81: 1 | C81: 4 | D81: 7 | E81: 0.001692349472 | F81: 0.0008576398484 | G81: 0.0006629765171 | H81: 2.234448925e-06 | I81: 8.0172213e-05 | J81: 0.0032953725 | L81: 0.001286832086 | M81: 0.0005735452551 | N81: 0.0004749630701 | O81: 1.935483871e-06 | P81: 3.548259725e-05 | Q81: 0.002372758493
A82: 2004 | B82: 1 | C82: 4 | D82: 8 | E82: 0.002008339629 | F82: 0.0008143739489 | G82: 0.0006774392715 | H82: 2.234448925e-06 | I82: 7.349760905e-05 | J82: 0.003575884908 | L82: 0.001527105316 | M82: 0.0005446112551 | N82: 0.0004853243334 | O82: 1.935483871e-06 | P82: 3.252855276e-05 | Q82: 0.002591504941
A83: 2004 | B83: 1 | C83: 4 | D83: 9 | E83: 0.002275157357 | F83: 0.0007695580607 | G83: 0.0006776705061 | H83: 2.234448925e-06 | I83: 0 | J83: 0.003724620373 | L83: 0.001729988715 | M83: 0.0005146407027 | N83: 0.0004854899922 | O83: 1.935483871e-06 | P83: 0 | Q83: 0.002732054894
A84: 2004 | B84: 1 | C84: 4 | D84: 10 | E84: 0.002403151899 | F84: 0.0007982824954 | G84: 0.0007216882771 | H84: 2.234448925e-06 | I84: 0 | J84: 0.003925357121 | L84: 0.001827313461 | M84: 0.0005338501217 | N84: 0.0005170247678 | O84: 1.935483871e-06 | P84: 0 | Q84: 0.002880123835
A85: 2004 | B85: 1 | C85: 4 | D85: 11 | E85: 0.002299816169 | F85: 0.0008314068293 | G85: 0.0007323708913 | H85: 2.234448925e-06 | I85: 0 | J85: 0.003865828338 | L85: 0.001748738832 | M85: 0.0005560019663 | N85: 0.0005246779004 | O85: 1.935483871e-06 | P85: 0 | Q85: 0.002831354182
A86: 2004 | B86: 1 | C86: 4 | D86: 12 | E86: 0.00220227455 | F86: 0.000835706576 | G86: 0.0007325990354 | H86: 2.234448925e-06 | I86: 0 | J86: 0.003772814611 | L86: 0.00167456994 | M86: 0.0005588774149 | N86: 0.0005248413451 | O86: 1.935483871e-06 | P86: 0 | Q86: 0.002760224184
A87: 2004 | B87: 1 | C87: 4 | D87: 13 | E87: 0.00209289031 | F87: 0.0008514543815 | G87: 0.0007270783431 | H87: 2.234448925e-06 | I87: 0 | J87: 0.003673657483 | L87: 0.001591396132 | M87: 0.0005694087342 | N87: 0.0005208862654 | O87: 1.935483871e-06 | P87: 0 | Q87: 0.002683626615
A88: 2004 | B88: 1 | C88: 4 | D88: 14 | E88: 0.002015211293 | F88: 0.0007888840509 | G88: 0.0007223990442 | H88: 2.234448925e-06 | I88: 0 | J88: 0.003528728837 | L88: 0.001532330405 | M88: 0.0005275649273 | N88: 0.0005175339685 | O88: 1.935483871e-06 | P88: 0 | Q88: 0.002579364785
A89: 2004 | B89: 1 | C89: 4 | D89: 15 | E89: 0.001901404689 | F89: 0.000800384768 | G89: 0.0007231252823 | H89: 2.234448925e-06 | I89: 0 | J89: 0.003427149189 | L89: 0.001445793912 | M89: 0.0005352560131 | N89: 0.0005180542528 | O89: 1.935483871e-06 | P89: 0 | Q89: 0.002501039661
A90: 2004 | B90: 1 | C90: 4 | D90: 16 | E90: 0.001987791966 | F90: 0.0007832528004 | G90: 0.0007094188998 | H90: 2.234448925e-06 | I90: 0 | J90: 0.003482698115 | L90: 0.001511481242 | M90: 0.0005237990376 | N90: 0.000508234862 | O90: 1.935483871e-06 | P90: 0 | Q90: 0.002545450626
A91: 2004 | B91: 1 | C91: 4 | D91: 17 | E91: 0.002284219033 | F91: 0.0008140199673 | G91: 0.0007200645511 | H91: 2.234448925e-06 | I91: 1.336203577e-06 | J91: 0.003821874204 | L91: 0.00173687905 | M91: 0.0005443745305 | N91: 0.000515861514 | O91: 1.935483871e-06 | P91: 5.913766326e-07 | Q91: 0.002799641955
A92: 2004 | B92: 1 | C92: 4 | D92: 18 | E92: 0.002586908387 | F92: 0.0007677281158 | G92: 0.0006926851058 | H92: 2.234448925e-06 | I92: 8.0172213e-05 | J92: 0.004129728271 | L92: 0.001967038588 | M92: 0.00051341693 | N92: 0.000496246603 | O92: 1.935483871e-06 | P92: 3.548259725e-05 | Q92: 0.003014120202
A93: 2004 | B93: 1 | C93: 4 | D93: 19 | E93: 0.002641950088 | F93: 0.0007837446562 | G93: 0.000699672068 | H93: 2.234448925e-06 | I93: 8.0172213e-05 | J93: 0.004207773474 | L93: 0.002008891307 | M93: 0.0005241279654 | N93: 0.0005012521333 | O93: 1.935483871e-06 | P93: 3.548259725e-05 | Q93: 0.003071689487
A94: 2004 | B94: 1 | C94: 4 | D94: 20 | E94: 0.00268459876 | F94: 0.0007377199859 | G94: 0.0006664479715 | H94: 2.234448925e-06 | I94: 8.0172213e-05 | J94: 0.004171173379 | L94: 0.00204132059 | M94: 0.0004933490419 | N94: 0.0004774500551 | O94: 1.935483871e-06 | P94: 3.548259725e-05 | Q94: 0.003049537768
A95: 2004 | B95: 1 | C95: 4 | D95: 21 | E95: 0.002553234068 | F95: 0.0007581259729 | G95: 0.0006663092478 | H95: 2.234448925e-06 | I95: 8.0172213e-05 | J95: 0.00406007595 | L95: 0.001941433242 | M95: 0.0005069955126 | N95: 0.0004773506721 | O95: 1.935483871e-06 | P95: 3.548259725e-05 | Q95: 0.002963197508
A96: 2004 | B96: 1 | C96: 4 | D96: 22 | E96: 0.002442768512 | F96: 0.0007913145369 | G96: 0.0006709056972 | H96: 2.234448925e-06 | I96: 8.0172213e-05 | J96: 0.003987395408 | L96: 0.001857437221 | M96: 0.0005291903109 | N96: 0.0004806436148 | O96: 1.935483871e-06 | P96: 3.548259725e-05 | Q96: 0.002904689228
A97: 2004 | B97: 1 | C97: 4 | D97: 23 | E97: 0.001993220299 | F97: 0.0008626308951 | G97: 0.0006903205962 | H97: 2.234448925e-06 | I97: 8.0172213e-05 | J97: 0.003628578452 | L97: 0.001515608849 | M97: 0.0005768830095 | N97: 0.0004945526444 | O97: 1.935483871e-06 | P97: 3.548259725e-05 | Q97: 0.002624462584
A98: 2004 | B98: 1 | C98: 4 | D98: 24 | E98: 0.001697091783 | F98: 0.0008942734988 | G98: 0.0006854553819 | H98: 2.234448925e-06 | I98: 8.0172213e-05 | J98: 0.003359227325 | L98: 0.001290438054 | M98: 0.0005980439493 | N98: 0.0004910671558 | O98: 1.935483871e-06 | P98: 3.548259725e-05 | Q98: 0.00241696724
A99: 2004 | B99: 1 | C99: 5 | D99: 1 | E99: 0.002035710403 | F99: 0.0008159366793 | G99: 0.0006642845837 | H99: 2.234448925e-06 | I99: 8.0172213e-05 | J99: 0.003598338328 | L99: 0.00154791756 | M99: 0.0005456563285 | N99: 0.0004759001823 | O99: 1.935483871e-06 | P99: 3.548259725e-05 | Q99: 0.002606892152
A100: 2004 | B100: 1 | C100: 5 | D100: 2 | E100: 0.001984791413 | F100: 0.0008001911216 | G100: 0.0006575362641 | H100: 2.234448925e-06 | I100: 8.0172213e-05 | J100: 0.00352492546 | L100: 0.001509199676 | M100: 0.0005351265124 | N100: 0.000471065618 | O100: 1.935483871e-06 | P100: 3.548259725e-05 | Q100: 0.002552809887
A101: 2004 | B101: 1 | C101: 5 | D101: 3 | E101: 0.001945680321 | F101: 0.0007648510477 | G101: 0.0006414782421 | H101: 2.234448925e-06 | I101: 8.0172213e-05 | J101: 0.003434416272 | L101: 0.001479460305 | M101: 0.0005114928954 | N101: 0.0004595614888 | O101: 1.935483871e-06 | P101: 3.548259725e-05 | Q101: 0.00248793277
A102: 2004 | B102: 1 | C102: 5 | D102: 4 | E102: 0.002038457772 | F102: 0.0007529927812 | G102: 0.0006306535211 | H102: 2.234448925e-06 | I102: 8.0172213e-05 | J102: 0.003504510736 | L102: 0.001550006609 | M102: 0.0005035626989 | N102: 0.0004518065494 | O102: 1.935483871e-06 | P102: 3.548259725e-05 | Q102: 0.002542793939
A103: 2004 | B103: 1 | C103: 5 | D103: 5 | E103: 0.002130550937 | F103: 0.0007128773982 | G103: 0.0006220193764 | H103: 2.234448925e-06 | I103: 8.0172213e-05 | J103: 0.003547854373 | L103: 0.001620032595 | M103: 0.0004767356018 | N103: 0.000445620961 | O103: 1.935483871e-06 | P103: 3.548259725e-05 | Q103: 0.002579807239
A104: 2004 | B104: 1 | C104: 5 | D104: 6 | E104: 0.002290207273 | F104: 0.0007040316678 | G104: 0.0006304042275 | H104: 2.234448925e-06 | I104: 8.0172213e-05 | J104: 0.00370704983 | L104: 0.0017414324 | M104: 0.0004708200339 | N104: 0.0004516279531 | O104: 1.935483871e-06 | P104: 3.548259725e-05 | Q104: 0.002701298468
A105: 2004 | B105: 1 | C105: 5 | D105: 7 | E105: 0.002696803283 | F105: 0.0006515946428 | G105: 0.0006607078778 | H105: 2.234448925e-06 | I105: 8.0172213e-05 | J105: 0.004091512466 | L105: 0.00205060069 | M105: 0.0004357528587 | N105: 0.000473337794 | O105: 1.935483871e-06 | P105: 3.548259725e-05 | Q105: 0.002997109424
A106: 2004 | B106: 1 | C106: 5 | D106: 8 | E106: 0.002638519563 | F106: 0.0008317829498 | G106: 0.0008227371296 | H106: 2.234448925e-06 | I106: 7.349760905e-05 | J106: 0.004368771701 | L106: 0.002006282798 | M106: 0.0005562534962 | N106: 0.0005894171859 | O106: 1.935483871e-06 | P106: 3.252855276e-05 | Q106: 0.003186417517
A107: 2004 | B107: 1 | C107: 5 | D107: 9 | E107: 0.0026828995 | F107: 0.0009946198598 | G107: 0.0009407338654 | H107: 2.234448925e-06 | I107: 0 | J107: 0.004620487674 | L107: 0.002040028503 | M107: 0.0006651504152 | N107: 0.0006739512386 | O107: 1.935483871e-06 | P107: 0 | Q107: 0.003381065641
A108: 2004 | B108: 1 | C108: 5 | D108: 10 | E108: 0.00251902786 | F108: 0.0010353245 | G108: 0.0009791237429 | H108: 2.234448925e-06 | I108: 0 | J108: 0.004535710552 | L108: 0.001915423457 | M108: 0.0006923715772 | N108: 0.0007014541344 | O108: 1.935483871e-06 | P108: 0 | Q108: 0.003311184653
A109: 2004 | B109: 1 | C109: 5 | D109: 11 | E109: 0.002440721518 | F109: 0.001050547653 | G109: 0.001001578114 | H109: 2.234448925e-06 | I109: 0 | J109: 0.004495081734 | L109: 0.001855880724 | M109: 0.0007025520359 | N109: 0.0007175406724 | O109: 1.935483871e-06 | P109: 0 | Q109: 0.003277908916
A110: 2004 | B110: 1 | C110: 5 | D110: 12 | E110: 0.002308387048 | F110: 0.001014054669 | G110: 0.0009770180924 | H110: 2.234448925e-06 | I110: 0 | J110: 0.004301694258 | L110: 0.001755255974 | M110: 0.0006781474121 | N110: 0.0006999456251 | O110: 1.935483871e-06 | P110: 0 | Q110: 0.003135284495
A111: 2004 | B111: 1 | C111: 5 | D111: 13 | E111: 0.002165576951 | F111: 0.001014602726 | G111: 0.0009651128838 | H111: 2.234448925e-06 | I111: 0 | J111: 0.004147527009 | L111: 0.001646665746 | M111: 0.0006785139242 | N111: 0.0006914166135 | O111: 1.935483871e-06 | P111: 0 | Q111: 0.003018531768
A112: 2004 | B112: 1 | C112: 5 | D112: 14 | E112: 0.002086549079 | F112: 0.0009315463124 | G112: 0.0009346138801 | H112: 2.234448925e-06 | I112: 0 | J112: 0.00395494372 | L112: 0.001586574374 | M112: 0.0006229700828 | N112: 0.0006695668194 | O112: 1.935483871e-06 | P112: 0 | Q112: 0.00288104676
A113: 2004 | B113: 1 | C113: 5 | D113: 15 | E113: 0.002006622179 | F113: 0.0009441750602 | G113: 0.0009382546208 | H113: 2.234448925e-06 | I113: 0 | J113: 0.003891286309 | L113: 0.001525799398 | M113: 0.0006314155374 | N113: 0.0006721750828 | O113: 1.935483871e-06 | P113: 0 | Q113: 0.002831325502
A114: 2004 | B114: 1 | C114: 5 | D114: 16 | E114: 0.002092470257 | F114: 0.001000602503 | G114: 0.0009398885113 | H114: 2.234448925e-06 | I114: 0 | J114: 0.00403519572 | L114: 0.001591076731 | M114: 0.000669151298 | N114: 0.0006733456185 | O114: 1.935483871e-06 | P114: 0 | Q114: 0.002935509132
A115: 2004 | B115: 1 | C115: 5 | D115: 17 | E115: 0.002525971062 | F115: 0.0009721862785 | G115: 0.0009208749685 | H115: 2.234448925e-06 | I115: 0 | J115: 0.004421266758 | L115: 0.001920702943 | M115: 0.0006501479942 | N115: 0.0006597241244 | O115: 1.935483871e-06 | P115: 0 | Q115: 0.003232510546
A116: 2004 | B116: 1 | C116: 5 | D116: 18 | E116: 0.003212039903 | F116: 0.0007788058623 | G116: 0.000814940531 | H116: 2.234448925e-06 | I116: 8.0172213e-05 | J116: 0.004888192958 | L116: 0.002442377344 | M116: 0.000520825155 | N116: 0.0005838316239 | O116: 1.935483871e-06 | P116: 3.548259725e-05 | Q116: 0.003584452204
A117: 2004 | B117: 1 | C117: 5 | D117: 19 | E117: 0.003558993331 | F117: 0.0006114019379 | G117: 0.0007248943252 | H117: 2.234448925e-06 | I117: 8.0172213e-05 | J117: 0.004977696256 | L117: 0.002706194488 | M117: 0.0004088740526 | N117: 0.000519321613 | O117: 1.935483871e-06 | P117: 3.548259725e-05 | Q117: 0.003671808234
A118: 2004 | B118: 1 | C118: 5 | D118: 20 | E118: 0.003286557133 | F118: 0.0007899800194 | G118: 0.0007778226639 | H118: 2.234448925e-06 | I118: 8.0172213e-05 | J118: 0.004936766478 | L118: 0.002499038905 | M118: 0.0005282978544 | N118: 0.0005572400092 | O118: 1.935483871e-06 | P118: 3.548259725e-05 | Q118: 0.00362199485
A119: 2004 | B119: 1 | C119: 5 | D119: 21 | E119: 0.003155048314 | F119: 0.0008210118082 | G119: 0.0007700906004 | H119: 2.234448925e-06 | I119: 8.0172213e-05 | J119: 0.004828557385 | L119: 0.002399041966 | M119: 0.0005490503128 | N119: 0.0005517006808 | O119: 1.935483871e-06 | P119: 3.548259725e-05 | Q119: 0.003537211041
A120: 2004 | B120: 1 | C120: 5 | D120: 22 | E120: 0.003022739042 | F120: 0.0008385210727 | G120: 0.000761094764 | H120: 2.234448925e-06 | I120: 8.0172213e-05 | J120: 0.004704761541 | L120: 0.002298436376 | M120: 0.0005607596049 | N120: 0.0005452559728 | O120: 1.935483871e-06 | P120: 3.548259725e-05 | Q120: 0.003441870035
A121: 2004 | B121: 1 | C121: 5 | D121: 23 | E121: 0.002590507589 | F121: 0.0008378151865 | G121: 0.0007322346106 | H121: 2.234448925e-06 | I121: 8.0172213e-05 | J121: 0.004242964048 | L121: 0.001969775357 | M121: 0.0005602875447 | N121: 0.0005245802675 | O121: 1.935483871e-06 | P121: 3.548259725e-05 | Q121: 0.00309206125
A122: 2004 | B122: 1 | C122: 5 | D122: 24 | E122: 0.002151184085 | F122: 0.0008537967384 | G122: 0.0007189206481 | H122: 2.234448925e-06 | I122: 8.0172213e-05 | J122: 0.003806308133 | L122: 0.001635721669 | M122: 0.0005709751816 | N122: 0.0005150420104 | O122: 1.935483871e-06 | P122: 3.548259725e-05 | Q122: 0.002759156942
A123: 2004 | B123: 1 | C123: 6 | D123: 1 | E123: 0.002498898923 | F123: 0.000982626789 | G123: 0.0007882077216 | H123: 2.234448925e-06 | I123: 8.0172213e-05 | J123: 0.004352140095 | L123: 0.001900117775 | M123: 0.0006571300686 | N123: 0.0005646799694 | O123: 1.935483871e-06 | P123: 3.548259725e-05 | Q123: 0.003159345894
A124: 2004 | B124: 1 | C124: 6 | D124: 2 | E124: 0.002460004799 | F124: 0.0009215239044 | G124: 0.0007697929022 | H124: 2.234448925e-06 | I124: 8.0172213e-05 | J124: 0.004233728268 | L124: 0.001870543383 | M124: 0.0006162676138 | N124: 0.0005514874068 | O124: 1.935483871e-06 | P124: 3.548259725e-05 | Q124: 0.003075716485
A125: 2004 | B125: 1 | C125: 6 | D125: 3 | E125: 0.002502553401 | F125: 0.0009525627997 | G125: 0.0007721811028 | H125: 2.234448925e-06 | I125: 8.0172213e-05 | J125: 0.004309703965 | L125: 0.001902896575 | M125: 0.0006370248246 | N125: 0.0005531983378 | O125: 1.935483871e-06 | P125: 3.548259725e-05 | Q125: 0.003130537818
A126: 2004 | B126: 1 | C126: 6 | D126: 4 | E126: 0.002660254266 | F126: 0.0009118302353 | G126: 0.0007476582122 | H126: 2.234448925e-06 | I126: 8.0172213e-05 | J126: 0.004402149376 | L126: 0.002022809475 | M126: 0.0006097849883 | N126: 0.0005356298915 | O126: 1.935483871e-06 | P126: 3.548259725e-05 | Q126: 0.003205642436
A127: 2004 | B127: 1 | C127: 6 | D127: 5 | E127: 0.002826531596 | F127: 0.0009086937821 | G127: 0.0007506545952 | H127: 2.234448925e-06 | I127: 8.0172213e-05 | J127: 0.004568286636 | L127: 0.002149243765 | M127: 0.0006076874904 | N127: 0.0005377765305 | O127: 1.935483871e-06 | P127: 3.548259725e-05 | Q127: 0.003332125867
A128: 2004 | B128: 1 | C128: 6 | D128: 6 | E128: 0.003064945414 | F128: 0.0009407543398 | G128: 0.0007862468084 | H128: 2.234448925e-06 | I128: 8.0172213e-05 | J128: 0.004874353225 | L128: 0.002330529342 | M128: 0.0006291279362 | N128: 0.0005632751514 | O128: 1.935483871e-06 | P128: 3.548259725e-05 | Q128: 0.003560350511
A129: 2004 | B129: 1 | C129: 6 | D129: 7 | E129: 0.003432412606 | F129: 0.0009129644999 | G129: 0.000832820473 | H129: 2.234448925e-06 | I129: 8.0172213e-05 | J129: 0.005260604241 | L129: 0.002609944782 | M129: 0.0006105435259 | N129: 0.0005966409948 | O129: 1.935483871e-06 | P129: 3.548259725e-05 | Q129: 0.003854547384
A130: 2004 | B130: 1 | C130: 6 | D130: 8 | E130: 0.003462139026 | F130: 0.001085167009 | G130: 0.0009929213436 | H130: 2.234448925e-06 | I130: 7.349760905e-05 | J130: 0.005615959437 | L130: 0.002632548217 | M130: 0.0007257036742 | N130: 0.0007113388749 | O130: 1.935483871e-06 | P130: 3.252855276e-05 | Q130: 0.004104054803
A131: 2004 | B131: 1 | C131: 6 | D131: 9 | E131: 0.003378038207 | F131: 0.001216477547 | G131: 0.001107566926 | H131: 2.234448925e-06 | I131: 0 | J131: 0.005704317129 | L131: =E131*T$5 -> 0.002568599468 | M131: =F131*U$5 -> 0.0008135173829 | N131: =G131*V$5 -> 0.0007934721275 | O131: =H131*W$5 -> 1.935483871e-06 | P131: =I131*X$5 -> 0 | Q131: =SUM(L131:P131) -> 0.004177524462
A132: 2004 | B132: 1 | C132: 6 | D132: 10 | E132: 0.003064991706 | F132: 0.001198379024 | G132: 0.001117618292 | H132: 2.234448925e-06 | I132: 0 | J132: =SUM(E132:I132) -> 0.005383223472 | L132: 0.002330564541 | M132: 0.0008014140252 | N132: 0.000800673028 | O132: 1.935483871e-06 | P132: 0 | Q132: 0.003934587078
A133: 2004 | B133: 1 | C133: 6 | D133: 11 | E133: 0.002877463568 | F133: 0.001188512516 | G133: 0.001111609166 | H133: 2.234448925e-06 | I133: 0 | J133: 0.005179819699 | L133: 0.00218797152 | M133: 0.000794815814 | N133: 0.0007963680293 | O133: 1.935483871e-06 | P133: 0 | Q133: 0.003781090847
A134: 2004 | B134: 1 | C134: 6 | D134: 12 | E134: 0.002717782432 | F134: 0.001141856888 | G134: 0.001089417369 | H134: 2.234448925e-06 | I134: 0 | J134: 0.004951291137 | L134: 0.002066552857 | M134: 0.0007636149383 | N134: 0.0007804696015 | O134: 1.935483871e-06 | P134: 0 | Q134: 0.003612572881
A135: 2004 | B135: 1 | C135: 6 | D135: 13 | E135: 0.002584211632 | F135: 0.001152086872 | G135: 0.001078117282 | H135: 2.234448925e-06 | I135: 0 | J135: 0.004816650235 | L135: 0.001964988025 | M135: 0.0007704562235 | N135: 0.0007723741052 | O135: 1.935483871e-06 | P135: 0 | Q135: 0.003509753837
A136: 2004 | B136: 1 | C136: 6 | D136: 14 | E136: 0.00243282626 | F136: 0.001135042341 | G136: 0.001072235786 | H136: 2.234448925e-06 | I136: 0 | J136: 0.004642338836 | L136: 0.001849877312 | M136: 0.0007590577212 | N136: 0.0007681605419 | O136: 1.935483871e-06 | P136: 0 | Q136: 0.003379031059
A137: 2004 | B137: 1 | C137: 6 | D137: 15 | E137: 0.002434059756 | F137: 0.001016407678 | G137: 0.001018691273 | H137: 2.234448925e-06 | I137: 0 | J137: 0.004471393156 | L137: 0.001850815239 | M137: 0.000679720983 | N137: 0.0007298007128 | O137: 1.935483871e-06 | P137: 0 | Q137: 0.003262272419
A138: 2004 | B138: 1 | C138: 6 | D138: 16 | E138: 0.002691936444 | F138: 0.001006836535 | G138: 0.0009954279844 | H138: 2.234448925e-06 | I138: 0 | J138: 0.004696435412 | L138: 0.002046900033 | M138: 0.0006733202967 | N138: 0.0007131346577 | O138: 1.935483871e-06 | P138: 0 | Q138: 0.003435290471
A139: 2004 | B139: 1 | C139: 6 | D139: 17 | E139: 0.003123092274 | F139: 0.0009969591547 | G139: 0.0009775904842 | H139: 2.234448925e-06 | I139: 0 | J139: 0.005099876362 | L139: 0.002374743168 | M139: 0.0006667148148 | N139: 0.0007003556924 | O139: 1.935483871e-06 | P139: 0 | Q139: 0.003743749159
A140: 2004 | B140: 1 | C140: 6 | D140: 18 | E140: 0.003599000923 | F140: 0.0009235514717 | G140: 0.0009227760114 | H140: 2.234448925e-06 | I140: 7.883600942e-05 | J140: 0.005526398864 | L140: 0.002736615541 | M140: 0.0006176235461 | N140: 0.0006610860507 | O140: 1.935483871e-06 | P140: 3.489122061e-05 | Q140: 0.004052151842
A141: 2004 | B141: 1 | C141: 6 | D141: 19 | E141: 0.004066334383 | F141: 0.0008155687366 | G141: 0.0008657521391 | H141: 2.234448925e-06 | I141: 8.0172213e-05 | J141: 0.00583006192 | L141: 0.003091967494 | M141: 0.0005454102675 | N141: 0.0006202335729 | O141: 1.935483871e-06 | P141: 3.548259725e-05 | Q141: 0.004295029416
A142: 2004 | B142: 1 | C142: 6 | D142: 20 | E142: 0.004015344515 | F142: 0.0008279395124 | G142: 0.0008437829239 | H142: 2.234448925e-06 | I142: 8.0172213e-05 | J142: 0.005769473613 | L142: 0.003053195716 | M142: 0.0005536832037 | N142: 0.0006044946053 | O142: 1.935483871e-06 | P142: 3.548259725e-05 | Q142: 0.004248791606
A143: 2004 | B143: 1 | C143: 6 | D143: 21 | E143: 0.003666570259 | F143: 0.0008774867295 | G143: 0.000840669472 | H143: 2.234448925e-06 | I143: 8.0172213e-05 | J143: 0.005467133122 | L143: 0.002787994048 | M143: 0.0005868178246 | N143: 0.000602264097 | O143: 1.935483871e-06 | P143: 3.548259725e-05 | Q143: 0.004014494051
A144: 2004 | B144: 1 | C144: 6 | D144: 22 | E144: 0.003436096887 | F144: 0.0009416660856 | G144: 0.0008517660003 | H144: 2.234448925e-06 | I144: 8.0172213e-05 | J144: 0.005311935635 | L144: 0.002612746243 | M144: 0.0006297376648 | N144: 0.0006102137619 | O144: 1.935483871e-06 | P144: 3.548259725e-05 | Q144: 0.003890115751
A145: 2004 | B145: 1 | C145: 6 | D145: 23 | E145: 0.00315432119 | F145: 0.0009558613201 | G145: 0.0008172466099 | H145: 2.234448925e-06 | I145: 8.0172213e-05 | J145: 0.005009835782 | L145: 0.002398489074 | M145: 0.0006392307047 | N145: 0.0005854837221 | O145: 1.935483871e-06 | P145: 3.548259725e-05 | Q145: 0.003660621582
A146: 2004 | B146: 1 | C146: 6 | D146: 24 | E146: 0.002858541423 | F146: 0.000988938856 | G146: 0.0008079027297 | H146: 2.234448925e-06 | I146: 8.0172213e-05 | J146: 0.004737789671 | L146: 0.002173583461 | M146: 0.0006613512531 | N146: 0.000578789672 | O146: 1.935483871e-06 | P146: 3.548259725e-05 | Q146: 0.003451142468
A147: 2004 | B147: 1 | C147: 7 | D147: 1 | E147: 0.002633309924 | F147: 0.0009781468834 | G147: 0.0007961506976 | H147: 2.234448925e-06 | I147: 8.0172213e-05 | J147: 0.004490014167 | L147: 0.002002321482 | M147: 0.000654134139 | N147: 0.0005703703975 | O147: 1.935483871e-06 | P147: 3.548259725e-05 | Q147: 0.0032642441
A148: 2004 | B148: 1 | C148: 7 | D148: 2 | E148: 0.002629314432 | F148: 0.0009288004934 | G148: 0.0007828663089 | H148: 2.234448925e-06 | I148: 8.0172213e-05 | J148: 0.004423387896 | L148: 0.001999283382 | M148: 0.0006211338209 | N148: 0.0005608533274 | O148: 1.935483871e-06 | P148: 3.548259725e-05 | Q148: 0.003218688611
A149: 2004 | B149: 1 | C149: 7 | D149: 3 | E149: 0.002648180989 | F149: 0.0009460257695 | G149: 0.0007796519425 | H149: 2.234448925e-06 | I149: 8.0172213e-05 | J149: 0.004456265363 | L149: 0.002013629172 | M149: 0.0006326531962 | N149: 0.0005585505228 | O149: 1.935483871e-06 | P149: 3.548259725e-05 | Q149: 0.003242250973
A150: 2004 | B150: 1 | C150: 7 | D150: 4 | E150: 0.002807452911 | F150: 0.0008962608622 | G150: 0.0007514662993 | H150: 2.234448925e-06 | I150: 8.0172213e-05 | J150: 0.004537586735 | L150: 0.002134736676 | M150: 0.0005993729953 | N150: 0.0005383580435 | O150: 1.935483871e-06 | P150: 3.548259725e-05 | Q150: 0.003309885796
A151: 2004 | B151: 1 | C151: 7 | D151: 5 | E151: 0.002921813812 | F151: 0.0008589240412 | G151: 0.0007403219732 | H151: 2.234448925e-06 | I151: 8.0172213e-05 | J151: 0.004603466488 | L151: 0.002221694647 | M151: 0.0005744040569 | N151: 0.0005303741357 | O151: 1.935483871e-06 | P151: 3.548259725e-05 | Q151: 0.003363890921
A152: 2004 | B152: 1 | C152: 7 | D152: 6 | E152: 0.003180296439 | F152: 0.0008977632187 | G152: 0.0007788729198 | H152: 2.234448925e-06 | I152: 8.0172213e-05 | J152: 0.004939339239 | L152: 0.002418240185 | M152: 0.0006003776939 | N152: 0.0005579924231 | O152: 1.935483871e-06 | P152: 3.548259725e-05 | Q152: 0.003614028383
A153: 2004 | B153: 1 | C153: 7 | D153: 7 | E153: 0.003549192447 | F153: 0.0008574984029 | G153: 0.0008171247627 | H153: 2.234448925e-06 | I153: 8.0172213e-05 | J153: 0.005306222275 | L153: 0.002698742072 | M153: 0.0005734506637 | N153: 0.0005853964295 | O153: 1.935483871e-06 | P153: 3.548259725e-05 | Q153: 0.003895007247
A154: 2004 | B154: 1 | C154: 7 | D154: 8 | E154: 0.003555942674 | F154: 0.00104073597 | G154: 0.000980269784 | H154: 2.234448925e-06 | I154: 7.349760905e-05 | J154: 0.005652680486 | L154: 0.002703874823 | M154: 0.0006959904889 | N154: 0.0007022751699 | O154: 1.935483871e-06 | P154: 3.252855276e-05 | Q154: 0.004136604518
A155: 2004 | B155: 1 | C155: 7 | D155: 9 | E155: 0.003445374918 | F155: 0.001166167201 | G155: 0.001093326423 | H155: 2.234448925e-06 | I155: 0 | J155: 0.005707102991 | L155: 0.002619801091 | M155: 0.000779872421 | N155: 0.0007832700874 | O155: 1.935483871e-06 | P155: 0 | Q155: 0.004184879083
A156: 2004 | B156: 1 | C156: 7 | D156: 10 | E156: 0.003237897738 | F156: 0.001210000109 | G156: 0.001130193126 | H156: 2.234448925e-06 | I156: 0 | J156: 0.005580325422 | L156: 0.002462039177 | M156: 0.0008091856068 | N156: 0.0008096817656 | O156: 1.935483871e-06 | P156: 0 | Q156: 0.004082842033
A157: 2004 | B157: 1 | C157: 7 | D157: 11 | E157: 0.003085844177 | F157: 0.001225929869 | G157: 0.001135304812 | H157: 2.234448925e-06 | I157: 0 | J157: 0.005449313307 | L157: 0.002346420385 | M157: 0.0008198386082 | N157: 0.0008133438291 | O157: 1.935483871e-06 | P157: 0 | Q157: 0.003981538306
A158: 2004 | B158: 1 | C158: 7 | D158: 12 | E158: 0.002924344719 | F158: 0.001181525918 | G158: 0.001114055155 | H158: 2.234448925e-06 | I158: 0 | J158: 0.00522216024 | L158: 0.002223619103 | M158: 0.0007901435377 | N158: 0.0007981203601 | O158: 1.935483871e-06 | P158: 0 | Q158: 0.003813818485
A159: 2004 | B159: 1 | C159: 7 | D159: 13 | E159: 0.002786218762 | F159: 0.001195514369 | G159: 0.00110356942 | H159: 2.234448925e-06 | I159: 0 | J159: 0.005087537 | L159: 0.002118590611 | M159: 0.0007994982916 | N159: 0.0007906082739 | O159: 1.935483871e-06 | P159: 0 | Q159: 0.00371063266
A160: 2004 | B160: 1 | C160: 7 | D160: 14 | E160: 0.002600940603 | F160: 0.001164404482 | G160: 0.001092181882 | H160: 2.234448925e-06 | I160: 0 | J160: 0.004859761416 | L160: 0.001977708432 | M160: 0.0007786936054 | N160: 0.000782450127 | O160: 1.935483871e-06 | P160: 0 | Q160: 0.003540787649
A161: 2004 | B161: 1 | C161: 7 | D161: 15 | E161: 0.002673076672 | F161: 0.0010747169 | G161: 0.001051574494 | H161: 2.234448925e-06 | I161: 0 | J161: 0.004801602514 | L161: 0.002032559401 | M161: 0.0007187151804 | N161: 0.0007533585838 | O161: 1.935483871e-06 | P161: 0 | Q161: 0.00350656865
A162: 2004 | B162: 1 | C162: 7 | D162: 16 | E162: 0.002925157631 | F162: 0.001054444863 | G162: 0.001022260961 | H162: 2.234448925e-06 | I162: 0 | J162: 0.005004097904 | L162: 0.002224237227 | M162: 0.0007051582888 | N162: 0.0007323580734 | O162: 1.935483871e-06 | P162: 0 | Q162: 0.003663689073
A163: 2004 | B163: 1 | C163: 7 | D163: 17 | E163: 0.003350297652 | F163: 0.001026528765 | G163: 0.0009961541956 | H163: 2.234448925e-06 | I163: 0 | J163: 0.005375215062 | L163: 0.002547506049 | M163: 0.0006864894436 | N163: 0.0007136549227 | O163: 1.935483871e-06 | P163: 0 | Q163: 0.003949585899
A164: 2004 | B164: 1 | C164: 7 | D164: 18 | E164: 0.003900634064 | F164: 0.0009675392405 | G164: 0.0009512293638 | H164: 2.234448925e-06 | I164: 7.749980593e-05 | J164: 0.005899136923 | L164: 0.002965971954 | M164: 0.000647040295 | N164: 0.0006814703197 | O164: 1.935483871e-06 | P164: 3.429984402e-05 | Q164: 0.004330717896
A165: 2004 | B165: 1 | C165: 7 | D165: 19 | E165: 0.00427541889 | F165: 0.0007910202542 | G165: 0.00086399271 | H165: 2.234448925e-06 | I165: 8.0172213e-05 | J165: 0.006012838516 | L165: 0.003250951591 | M165: 0.0005289935097 | N165: 0.0006189731002 | O165: 1.935483871e-06 | P165: 3.548259725e-05 | Q165: 0.004436336282
A166: 2004 | B166: 1 | C166: 7 | D166: 20 | E166: 0.004220658276 | F166: 0.0008104372629 | G166: 0.0008455367771 | H166: 2.234448925e-06 | I166: 8.0172213e-05 | J166: 0.005959038978 | L166: 0.003209312606 | M166: 0.0005419786028 | N166: 0.0006057510835 | O166: 1.935483871e-06 | P166: 3.548259725e-05 | Q166: 0.004394460373
A167: 2004 | B167: 1 | C167: 7 | D167: 21 | E167: 0.003936335554 | F167: 0.0009090407744 | G167: 0.000865000342 | H167: 2.234448925e-06 | I167: 8.0172213e-05 | J167: 0.005792783332 | L167: 0.002993118724 | M167: 0.0006079195409 | N167: 0.0006196949779 | O167: 1.935483871e-06 | P167: 3.548259725e-05 | Q167: 0.004258151324
A168: 2004 | B168: 1 | C168: 7 | D168: 22 | E168: 0.003627058764 | F168: 0.0009436510285 | G168: 0.0008613296368 | H168: 2.234448925e-06 | I168: 8.0172213e-05 | J168: 0.005514446092 | L168: 0.002757950219 | M168: 0.0006310650921 | N168: 0.0006170652477 | O168: 1.935483871e-06 | P168: 3.548259725e-05 | Q168: 0.004043498639
A169: 2004 | B169: 1 | C169: 7 | D169: 23 | E169: 0.003299947897 | F169: 0.000941610155 | G169: 0.0008245954005 | H169: 2.234448925e-06 | I169: 8.0172213e-05 | J169: 0.005148560115 | L169: 0.002509221001 | M169: 0.0006297002612 | N169: 0.0005907484698 | O169: 1.935483871e-06 | P169: 3.548259725e-05 | Q169: 0.003767087814
A170: 2004 | B170: 1 | C170: 7 | D170: 24 | E170: 0.002905442871 | F170: 0.0009305508233 | G170: 0.0007947816051 | H170: 2.234448925e-06 | I170: 8.0172213e-05 | J170: 0.004713181961 | L170: 0.002209246478 | M170: 0.0006223043511 | N170: 0.0005693895658 | O170: 1.935483871e-06 | P170: 3.548259725e-05 | Q170: 0.003438358476
A171: 2004 | B171: 1 | C171: 8 | D171: 1 | E171: 0.002949028672 | F171: 0.0009977332534 | G171: 0.000815300999 | H171: 2.234448925e-06 | I171: 8.0172213e-05 | J171: 0.004844469587 | L171: 0.002242388337 | M171: 0.0006672324921 | N171: 0.0005840898668 | O171: 1.935483871e-06 | P171: 3.548259725e-05 | Q171: 0.003531128777
A172: 2004 | B172: 1 | C172: 8 | D172: 2 | E172: 0.00291671987 | F172: 0.0009224265984 | G172: 0.000792599622 | H172: 2.234448925e-06 | I172: 8.0172213e-05 | J172: 0.004714152753 | L172: 0.002217821306 | M172: 0.0006168712889 | N172: 0.0005678263712 | O172: 1.935483871e-06 | P172: 3.548259725e-05 | Q172: 0.003439937047
A173: 2004 | B173: 1 | C173: 8 | D173: 3 | E173: 0.002972386876 | F173: 0.0009549126325 | G173: 0.0007954200906 | H173: 2.234448925e-06 | I173: 8.0172213e-05 | J173: 0.004805126261 | L173: 0.002260149495 | M173: 0.0006385962715 | N173: 0.0005698469833 | O173: 1.935483871e-06 | P173: 3.548259725e-05 | Q173: 0.00350601083
A174: 2004 | B174: 1 | C174: 8 | D174: 4 | E174: 0.003151063046 | F174: 0.0008959841845 | G174: 0.0007631165152 | H174: 2.234448925e-06 | I174: 8.0172213e-05 | J174: 0.004892570407 | L174: 0.002396011639 | M174: 0.0005991879676 | N174: 0.0005467043758 | O174: 1.935483871e-06 | P174: 3.548259725e-05 | Q174: 0.003579322064
A175: 2004 | B175: 1 | C175: 8 | D175: 5 | E175: 0.003276012435 | F175: 0.000848902386 | G175: 0.0007469436485 | H175: 2.234448925e-06 | I175: 8.0172213e-05 | J175: 0.004954265131 | L175: 0.002491020907 | M175: 0.0005677020913 | N175: 0.0005351179708 | O175: 1.935483871e-06 | P175: 3.548259725e-05 | Q175: 0.00363125905
A176: 2004 | B176: 1 | C176: 8 | D176: 6 | E176: 0.003558163792 | F176: 0.0008931503676 | G176: 0.0007873141505 | H176: 2.234448925e-06 | I176: 8.0172213e-05 | J176: 0.005321034972 | L176: 0.002705563721 | M176: 0.0005972928572 | N176: 0.000564039806 | O176: 1.935483871e-06 | P176: 3.548259725e-05 | Q176: 0.003904314466
A177: 2004 | B177: 1 | C177: 8 | D177: 7 | E177: 0.003933613732 | F177: 0.0008306687058 | G177: 0.0008178490209 | H177: 2.234448925e-06 | I177: 8.0172213e-05 | J177: 0.00566453812 | L177: 0.002991049099 | M177: 0.0005555083473 | N177: 0.0005859152954 | O177: 1.935483871e-06 | P177: 3.548259725e-05 | Q177: 0.004169890823
A178: 2004 | B178: 1 | C178: 8 | D178: 8 | E178: 0.003847670881 | F178: 0.001010752392 | G178: 0.0009804580091 | H178: 2.234448925e-06 | I178: 7.216140548e-05 | J178: 0.005913277136 | L178: 0.002925699702 | M178: 0.0006759390198 | N178: 0.0007024100162 | O178: 1.935483871e-06 | P178: 3.193717613e-05 | Q178: 0.004337921398
A179: 2004 | B179: 1 | C179: 8 | D179: 9 | E179: 0.003723345228 | F179: 0.001143844129 | G179: 0.001097313621 | H179: 2.234448925e-06 | I179: 0 | J179: 0.005966737427 | L179: 0.002831164713 | M179: 0.000764943903 | N179: 0.0007861265563 | O179: 1.935483871e-06 | P179: 0 | Q179: 0.004384170656
A180: 2004 | B180: 1 | C180: 8 | D180: 10 | E180: 0.003499735093 | F180: 0.001195503073 | G180: 0.00113685655 | H180: 2.234448925e-06 | I180: 0 | J180: 0.005834329165 | L180: 0.00266113559 | M180: 0.0007994907375 | N180: 0.00081445551 | O180: 1.935483871e-06 | P180: 0 | Q180: 0.004277017322
A181: 2004 | B181: 1 | C181: 8 | D181: 11 | E181: 0.003278633887 | F181: 0.001191375381 | G181: 0.00113256025 | H181: 2.234448925e-06 | I181: 0 | J181: 0.005604803967 | L181: 0.002493014211 | M181: 0.0007967303505 | N181: 0.0008113775975 | O181: 1.935483871e-06 | P181: 0 | Q181: 0.004103057643
A182: 2004 | B182: 1 | C182: 8 | D182: 12 | E182: 0.003164966828 | F182: 0.001177426118 | G182: 0.001124369834 | H182: 2.234448925e-06 | I182: 0 | J182: 0.005468997229 | L182: 0.002406583825 | M182: 0.0007874018037 | N182: 0.0008055099002 | O182: 1.935483871e-06 | P182: 0 | Q182: 0.004001431013
A183: 2004 | B183: 1 | C183: 8 | D183: 13 | E183: 0.002965233148 | F183: 0.001171858589 | G183: 0.001106812362 | H183: 2.234448925e-06 | I183: 0 | J183: 0.005246138549 | L183: 0.002254709929 | M183: 0.0007836785277 | N183: 0.0007929315505 | O183: 1.935483871e-06 | P183: 0 | Q183: 0.003833255491
A184: 2004 | B184: 1 | C184: 8 | D184: 14 | E184: 0.002799060041 | F184: 0.001156571595 | G184: 0.001102927 | H184: 2.234448925e-06 | I184: 0 | J184: 0.005060793086 | L184: 0.002128354888 | M184: 0.0007734553752 | N184: 0.0007901480381 | O184: 1.935483871e-06 | P184: 0 | Q184: 0.003693893786
A185: 2004 | B185: 1 | C185: 8 | D185: 15 | E185: 0.002886663003 | F185: 0.0010610313 | G185: 0.001059757213 | H185: 2.234448925e-06 | I185: 0 | J185: 0.005009685965 | L185: 0.002194966605 | M185: 0.000709562958 | N185: 0.0007592207666 | O185: 1.935483871e-06 | P185: 0 | Q185: 0.003665685813
A186: 2004 | B186: 1 | C186: 8 | D186: 16 | E186: 0.003103026024 | F186: 0.001007598622 | G186: 0.001016686957 | H186: 2.234448925e-06 | I186: 0 | J186: 0.005129546052 | L186: 0.002359485152 | M186: 0.0006738299415 | N186: 0.0007283648004 | O186: 1.935483871e-06 | P186: 0 | Q186: 0.003763615378
A187: 2004 | B187: 1 | C187: 8 | D187: 17 | E187: 0.003573433418 | F187: 0.0009736945919 | G187: 0.0009878646759 | H187: 2.234448925e-06 | I187: 0 | J187: 0.005537227134 | L187: 0.00271717447 | M187: 0.0006511566763 | N187: 0.0007077162271 | O187: 1.935483871e-06 | P187: 0 | Q187: 0.004077982857
A188: 2004 | B188: 1 | C188: 8 | D188: 18 | E188: 0.004174405989 | F188: 0.0008951414556 | G188: 0.0009355444415 | H188: 2.234448925e-06 | I188: 7.482739877e-05 | J188: 0.006082153734 | L188: 0.003174143199 | M188: 0.000598624394 | N188: 0.000670233483 | O188: 1.935483871e-06 | P188: 3.311709075e-05 | Q188: 0.004478053651
A189: 2004 | B189: 1 | C189: 8 | D189: 19 | E189: 0.004581986964 | F189: 0.0006936767558 | G189: 0.0008370160533 | H189: 2.234448925e-06 | I189: 8.0172213e-05 | J189: 0.006195086435 | L189: 0.003484060439 | M189: 0.0004638952033 | N189: 0.0005996467509 | O189: 1.935483871e-06 | P189: 3.548259725e-05 | Q189: 0.004585020474
A190: 2004 | B190: 1 | C190: 8 | D190: 20 | E190: 0.004506991745 | F190: 0.0007201552498 | G190: 0.0008217462023 | H190: 2.234448925e-06 | I190: 8.0172213e-05 | J190: 0.006131299859 | L190: 0.003427035424 | M190: 0.0004816026532 | N190: 0.0005887072755 | O190: 1.935483871e-06 | P190: 3.548259725e-05 | Q190: 0.004534763434
A191: 2004 | B191: 1 | C191: 8 | D191: 21 | E191: 0.004232799788 | F191: 0.0008554548493 | G191: 0.000856463353 | H191: 2.234448925e-06 | I191: 8.0172213e-05 | J191: 0.006027124653 | L191: 0.003218544794 | M191: 0.0005720840405 | N191: 0.0006135789928 | O191: 1.935483871e-06 | P191: 3.548259725e-05 | Q191: 0.004441625908
A192: 2004 | B192: 1 | C192: 8 | D192: 22 | E192: 0.003903724287 | F192: 0.0009002835206 | G192: 0.000856288087 | H192: 2.234448925e-06 | I192: 8.0172213e-05 | J192: 0.005742702557 | L192: 0.002968321704 | M192: 0.0006020631417 | N192: 0.0006134534304 | O192: 1.935483871e-06 | P192: 3.548259725e-05 | Q192: 0.004221256357
A193: 2004 | B193: 1 | C193: 8 | D193: 23 | E193: 0.003568176179 | F193: 0.0009071213639 | G193: 0.0008229340351 | H193: 2.234448925e-06 | I193: 8.0172213e-05 | J193: 0.00538063824 | L193: 0.00271317696 | M193: 0.0006066359382 | N193: 0.0005895582509 | O193: 1.935483871e-06 | P193: 3.548259725e-05 | Q193: 0.00394678923
A194: 2004 | B194: 1 | C194: 8 | D194: 24 | E194: 0.003301332097 | F194: 0.0009726204074 | G194: 0.0008261236637 | H194: 2.234448925e-06 | I194: 8.0172213e-05 | J194: 0.00518248283 | L194: 0.002510273522 | M194: 0.0006504383171 | N194: 0.0005918433331 | O194: 1.935483871e-06 | P194: 3.548259725e-05 | Q194: 0.003789973254
A195: 2004 | B195: 1 | C195: 9 | D195: 1 | E195: 0.002626979509 | F195: 0.0007583055283 | G195: 0.0006779195151 | H195: 2.234448925e-06 | I195: 8.0172213e-05 | J195: 0.004145611214 | L195: =E195*T$5 -> 0.001997507948 | M195: =F195*U$5 -> 0.00050711559 | N195: =G195*V$5 -> 0.0004856683848 | O195: =H195*W$5 -> 1.935483871e-06 | P195: =I195*X$5 -> 3.548259725e-05 | Q195: =SUM(L195:P195) -> 0.003027710004
A196: 2004 | B196: 1 | C196: 9 | D196: 2 | E196: 0.002588668258 | F196: 0.0007294222996 | G196: 0.0006626422765 | H196: 2.234448925e-06 | I196: 8.0172213e-05 | J196: =SUM(E196:I196) -> 0.004063139496 | L196: 0.001968376763 | M196: 0.0004877999777 | N196: 0.0004747236168 | O196: 1.935483871e-06 | P196: 3.548259725e-05 | Q196: 0.002968318438
A197: 2004 | B197: 1 | C197: 9 | D197: 3 | E197: 0.002572936735 | F197: 0.0006920526637 | G197: 0.0006396411414 | H197: 2.234448925e-06 | I197: 8.0172213e-05 | J197: 0.003987037202 | L197: 0.001956414795 | M197: 0.0004628090944 | N197: 0.0004582453714 | O197: 1.935483871e-06 | P197: 3.548259725e-05 | Q197: 0.002914887342
A198: 2004 | B198: 1 | C198: 9 | D198: 4 | E198: 0.002727172274 | F198: 0.0006699129511 | G198: 0.0006219779349 | H198: 2.234448925e-06 | I198: 8.0172213e-05 | J198: 0.004101469822 | L198: 0.002073692724 | M198: 0.0004480031976 | N198: 0.0004455912719 | O198: 1.935483871e-06 | P198: 3.548259725e-05 | Q198: 0.003004705275
A199: 2004 | B199: 1 | C199: 9 | D199: 5 | E199: 0.002957595707 | F199: 0.0005720955161 | G199: 0.0005835777399 | H199: 2.234448925e-06 | I199: 8.0172213e-05 | J199: 0.004195675625 | L199: 0.002248902556 | M199: 0.0003825879468 | N199: 0.0004180809845 | O199: 1.935483871e-06 | P199: 3.548259725e-05 | Q199: 0.003086989569
A200: 2004 | B200: 1 | C200: 9 | D200: 6 | E200: 0.003234307817 | F200: 0.0005986603334 | G200: 0.000596778046 | H200: 2.234448925e-06 | I200: 8.0172213e-05 | J200: 0.004512152859 | L200: 0.002459309466 | M200: 0.0004003531253 | N200: 0.0004275378171 | O200: 1.935483871e-06 | P200: 3.548259725e-05 | Q200: 0.003324618489
... 4297 more rows

Sheet 2006 Input to CA model
A2: Feed into OEB Cost Allocation Model (version 50) sheet "I6 Customer Data", row 27
D3: 1 | E3: 2 | F3: 3 | G3: 4 | H3: 5 | J3: 7 | K3: 8 | L3: 9 | M3: 10 | N3: 11 | O3: 12 | P3: 13 | Q3: 14 | R3: 15 | S3: 16 | T3: 17 | U3: 18 | V3: 19 | W3: 20
B4: ID | C4: Total | D4: Residential | E4: GS<50 kW | F4: GS>50 kW | G4: USL | H4: Street Lighting
A6: kWh - 30 year weather normalized amount | C6: =SUM(D6:I6) -> 27966291.06 | D6: 16265358.77 | E6: 5773900.296 | F6: 5561381.915 | G6: 19949.16 | H6: 345700.9213 | J6: 0 | K6: 0 | L6: 0 | M6: 0 | N6: 0
A9: Feed into OEB Cost Allocation Model sheet (version 50) "I8 Demand Data", row 40, 45, 50, 55, 61 and 67
D10: 1 | E10: 2 | F10: 3 | G10: 4 | H10: 5 | J10: 7 | K10: 8 | L10: 9 | M10: 10 | N10: 11 | O10: 12 | P10: 13 | Q10: 14 | R10: 15 | S10: 16 | T10: 17 | U10: 18 | V10: 19 | W10: 20
A11: Customer Classes | C11: Total | D11: Residential | E11: GS<50 kW | F11: GS>50 kW | G11: USL | H11: Street Lighting
A13: CO-INCIDENT PEAK (kW)
A15: 1 CP
A16: Total Sytem CP | B16: DCP1 | C16: =SUM(D16:I16) -> 7224.297522 | D16: 4448.227175 | E16: 1499.572445 | F16: 1274.263452 | G16: 2.234448925 | H16: 0
A18: 4 CP
A19: Total Sytem CP | B19: DCP4 | C19: =SUM(D19:I19) -> 26095.56893 | D19: 16880.40852 | E19: 4611.150973 | F19: 4354.400902 | G19: 9.091895625 | H19: 240.516639
A21: 12 CP
A22: Total Sytem CP | B22: DCP12 | C22: =SUM(D22:I22) -> 56529.40513 | D22: 35867.82869 | E22: 10094.80697 | F22: 9986.315776 | G22: 27.26541355 | H22: 553.1882697
A24: NON CO_INCIDENT PEAK (kW)
A26: 1 NCP
A27: Classification NCP from Load Data Provider | B27: DNCP1 | C27: =SUM(D27:I27) -> 7865.357433 | D27: 4990.781333 | E27: 1499.572445 | F27: 1292.442892 | G27: 2.388548851 | H27: 80.172213
A29: 4 NCP
A30: Classification NCP from Load Data Provider | B30: DNCP4 | C30: =SUM(D30:I30) -> 29224.20428 | D30: 18393.63223 | E30: 5475.393619 | F30: 5025.174244 | G30: 9.315340517 | H30: 320.688852
A32: 12 NCP
A33: Classification NCP from Load Data Provider | B33: DNCP12 | C33: =SUM(D33:I33) -> 62410.49966 | D33: 38266.70454 | E33: 11613.6354 | F33: 11540.82775 | G33: 27.26541355 | H33: 962.066556

Sheet Revised Inputs to CA model
A2: Feed into OEB Cost Allocation Model (version 50) sheet "I6 Customer Data", row 27
B4: ID | C4: Total | D4: ='Hourly load shapes by class'!E2 -> Residential | E4: ='Hourly load shapes by class'!F2 -> GS<50 kW | F4: ='Hourly load shapes by class'!G2 -> GS>50 kW | G4: ='Hourly load shapes by class'!H2 -> USL | H4: ='Hourly load shapes by class'!I2 -> Street Lighting
A6: kWh - 30 year weather normalized amount | C6: =SUM(D6:I6) -> 20383682.94 | D6: ='Hourly load shapes by class'!T4 -> 12367886.13 | E6: ='Hourly load shapes by class'!U4 -> 3861286.442 | F6: ='Hourly load shapes by class'!V4 -> 3984230.151 | G6: ='Hourly load shapes by class'!W4 -> 17280 | H6: ='Hourly load shapes by class'!X4 -> 153000.2241
A9: Feed into OEB Cost Allocation Model sheet (version 50) "I8 Demand Data", row 40, 45, 50, 55, 61 and 67 | K9: 2018 Demand Data
A11: Customer Classes | C11: Total | D11: ='Hourly load shapes by class'!E2 -> Residential | E11: ='Hourly load shapes by class'!F2 -> GS<50 kW | F11: ='Hourly load shapes by class'!G2 -> GS>50 kW | G11: ='Hourly load shapes by class'!H2 -> USL | H11: ='Hourly load shapes by class'!I2 -> Street Lighting | K11: =D11 -> Residential | L11: =E11 -> GS<50 kW | M11: GS>50 kW | N11: USL | O11: Street Lighting
A13: CO-INCIDENT PEAK (kW)
A15: 1 CP
A16: Total Sytem CP | B16: DCP1 | C16: =SUM(D16:I16) -> 7224.297522 | D16: ='Hourly load shapes by class'!E8802*1000000 -> 4448.227175 | E16: ='Hourly load shapes by class'!F8802*1000000 -> 1499.572445 | F16: ='Hourly load shapes by class'!G8802*1000000 -> 1274.263452 | G16: ='Hourly load shapes by class'!H8802*1000000 -> 2.234448925 | H16: ='Hourly load shapes by class'!I8802*1000000 -> 0 | K16: ='Hourly load shapes by class'!L8815*1000000 -> 3382.351902 | L16: ='Hourly load shapes by class'!M8815*1000000 -> 1002.836636 | M16: ='Hourly load shapes by class'!N8815*1000000 -> 912.895202 | N16: ='Hourly load shapes by class'!O8815*1000000 -> 1.935483871 | O16: ='Hourly load shapes by class'!P8815*1000000 -> 0
A18: 4 CP
A19: Total Sytem CP | B19: DCP4 | C19: =SUM(D19:I19) -> 26095.56893 | D19: =SUM('Hourly load shapes by class'!E8815:E8818)*1000000 -> 16880.40852 | E19: =SUM('Hourly load shapes by class'!F8815:F8818)*1000000 -> 4611.150973 | F19: =SUM('Hourly load shapes by class'!G8815:G8818)*1000000 -> 4354.400902 | G19: =SUM('Hourly load shapes by class'!H8815:H8818)*1000000 -> 9.091895625 | H19: =SUM('Hourly load shapes by class'!I8815:I8818)*1000000 -> 240.516639 | K19: =SUM('Hourly load shapes by class'!L8815:L8818)*1000000 -> 12835.55889 | L19: =SUM('Hourly load shapes by class'!M8815:M8818)*1000000 -> 3083.699721 | M19: =SUM('Hourly load shapes by class'!N8815:N8818)*1000000 -> 3119.536767 | N19: =SUM('Hourly load shapes by class'!O8815:O8818)*1000000 -> 7.87541713 | O19: =SUM('Hourly load shapes by class'!P8815:P8818)*1000000 -> 106.4477917
A21: 12 CP
A22: Total Sytem CP | B22: DCP12 | C22: =SUM(D22:I22) -> 56529.40513 | D22: =SUM('Hourly load shapes by class'!E8802:E8813)*1000000 -> 35867.82869 | E22: =SUM('Hourly load shapes by class'!F8802:F8813)*1000000 -> 10094.80697 | F22: =SUM('Hourly load shapes by class'!G8802:G8813)*1000000 -> 9986.315776 | G22: =SUM('Hourly load shapes by class'!H8802:H8813)*1000000 -> 27.26541355 | H22: =SUM('Hourly load shapes by class'!I8802:I8813)*1000000 -> 553.1882697 | K22: =SUM('Hourly load shapes by class'!L8802:L8813)*1000000 -> 27273.25153 | L22: =SUM('Hourly load shapes by class'!M8802:M8813)*1000000 -> 6750.885762 | M22: =SUM('Hourly load shapes by class'!N8802:N8813)*1000000 -> 7154.297442 | N22: =SUM('Hourly load shapes by class'!O8802:O8813)*1000000 -> 23.61735261 | O22: =SUM('Hourly load shapes by class'!P8802:P8813)*1000000 -> 244.829921
A24: NON CO_INCIDENT PEAK (kW)
A26: 1 NCP
A27: Classification NCP from Load Data Provider | B27: DNCP1 | C27: =SUM(D27:I27) -> 7865.203333 | D27: ='Hourly load shapes by class'!E8788*1000000 -> 4990.781333 | E27: ='Hourly load shapes by class'!F8788*1000000 -> 1499.572445 | F27: ='Hourly load shapes by class'!G8788*1000000 -> 1292.442892 | G27: ='Hourly load shapes by class'!H8788*1000000 -> 2.234448925 | H27: ='Hourly load shapes by class'!I8788*1000000 -> 80.172213 | K27: ='Hourly load shapes by class'!L8788*1000000 -> 3794.900321 | L27: ='Hourly load shapes by class'!M8788*1000000 -> 1002.836636 | M27: ='Hourly load shapes by class'!N8788*1000000 -> 925.9191364 | N27: ='Hourly load shapes by class'!O8788*1000000 -> 1.935483871 | O27: ='Hourly load shapes by class'!P8788*1000000 -> 35.48259725
A29: 4 NCP
A30: Classification NCP from Load Data Provider | B30: DNCP4 | C30: =SUM(D30:I30) -> 29224.20428 | D30: =(LARGE('Hourly load shapes by class'!E8788:E8799,1)+LARGE('Hourly load shapes by class'!E8788:E8799,2)+LARGE('Hourly load shapes by class'!E8788:E8799,3)+LARGE('Hourly load shapes by class'!E8788:E8799,4))*1000000 -> 18393.63223 | E30: =(LARGE('Hourly load shapes by class'!F8788:F8799,1)+LARGE('Hourly load shapes by class'!F8788:F8799,2)+LARGE('Hourly load shapes by class'!F8788:F8799,3)+LARGE('Hourly load shapes by class'!F8788:F8799,4))*1000000 -> 5475.393619 | F30: =(LARGE('Hourly load shapes by class'!G8788:G8799,1)+LARGE('Hourly load shapes by class'!G8788:G8799,2)+LARGE('Hourly load shapes by class'!G8788:G8799,3)+LARGE('Hourly load shapes by class'!G8788:G8799,4))*1000000 -> 5025.174244 | G30: =(LARGE('Hourly load shapes by class'!H8788:H8799,1)+LARGE('Hourly load shapes by class'!H8788:H8799,2)+LARGE('Hourly load shapes by class'!H8788:H8799,3)+LARGE('Hourly load shapes by class'!H8788:H8799,4))*1000000 -> 9.315340517 | H30: =(LARGE('Hourly load shapes by class'!I8788:I8799,1)+LARGE('Hourly load shapes by class'!I8788:I8799,2)+LARGE('Hourly load shapes by class'!I8788:I8799,3)+LARGE('Hourly load shapes by class'!I8788:I8799,4))*1000000 -> 320.688852 | K30: =(LARGE('Hourly load shapes by class'!L8788:L8799,1)+LARGE('Hourly load shapes by class'!L8788:L8799,2)+LARGE('Hourly load shapes by class'!L8788:L8799,3)+LARGE('Hourly load shapes by class'!L8788:L8799,4))*1000000 -> 13986.18697 | L30: =(LARGE('Hourly load shapes by class'!M8788:M8799,1)+LARGE('Hourly load shapes by class'!M8788:M8799,2)+LARGE('Hourly load shapes by class'!M8788:M8799,3)+LARGE('Hourly load shapes by class'!M8788:M8799,4))*1000000 -> 3661.660586 | M30: =(LARGE('Hourly load shapes by class'!N8788:N8799,1)+LARGE('Hourly load shapes by class'!N8788:N8799,2)+LARGE('Hourly load shapes by class'!N8788:N8799,3)+LARGE('Hourly load shapes by class'!N8788:N8799,4))*1000000 -> 3600.085562 | N30: =(LARGE('Hourly load shapes by class'!O8788:O8799,1)+LARGE('Hourly load shapes by class'!O8788:O8799,2)+LARGE('Hourly load shapes by class'!O8788:O8799,3)+LARGE('Hourly load shapes by class'!O8788:O8799,4))*1000000 -> 8.068965517 | O30: =(LARGE('Hourly load shapes by class'!P8788:P8799,1)+LARGE('Hourly load shapes by class'!P8788:P8799,2)+LARGE('Hourly load shapes by class'!P8788:P8799,3)+LARGE('Hourly load shapes by class'!P8788:P8799,4))*1000000 -> 141.930389
A32: 12 NCP
A33: Classification NCP from Load Data Provider | B33: DNCP12 | C33: =SUM(D33:I33) -> 62410.49966 | D33: =SUM('Hourly load shapes by class'!E8788:E8799)*1000000 -> 38266.70454 | E33: =SUM('Hourly load shapes by class'!F8788:F8799)*1000000 -> 11613.6354 | F33: =SUM('Hourly load shapes by class'!G8788:G8799)*1000000 -> 11540.82775 | G33: =SUM('Hourly load shapes by class'!H8788:H8799)*1000000 -> 27.26541355 | H33: =SUM('Hourly load shapes by class'!I8788:I8799)*1000000 -> 962.066556 | K33: =SUM('Hourly load shapes by class'!L8788:L8799)*1000000 -> 29097.31356 | L33: =SUM('Hourly load shapes by class'!M8788:M8799)*1000000 -> 7766.599802 | M33: =SUM('Hourly load shapes by class'!N8788:N8799)*1000000 -> 8267.965515 | N33: =SUM('Hourly load shapes by class'!O8788:O8799)*1000000 -> 23.61735261 | O33: =SUM('Hourly load shapes by class'!P8788:P8799)*1000000 -> 425.791167
